Workbook

Sheet Entrées
B2: Veuillez indiquer vos hypothèses et entrées pour les analyses
A4: =CHAR(128) -> € | B4: Cliquer sur les flèches pour voir les choix possible.
B6: Système de pompage et d'irrigation à énergie solaire (SPIS)
B8: Taille de l'installation | C8: 10 | D8: kWc
B10: Coût du SPIS, hors taxes | C10: 50000 | D10: DT
B11: Coût du SPIS, TTC | C11: 60000 | D11: DT
B13: Choix de la subvention | C13: FTI | D13: =HYPERLINK("#"&ADDRESS(ROW(),COLUMN()-1),CHAR(128)) -> €
C14: 1000 | D14: DT | F14: Domaines de l’agriculture dont le coût ne dépasse pas 200 000 DT? | H14: Non | I14: =HYPERLINK("#"&ADDRESS(ROW(),COLUMN()-1),CHAR(128)) -> € | J14: Société mutuelle de services agricoles ou groupements de développement? | M14: Non | N14: =HYPERLINK("#"&ADDRESS(ROW(),COLUMN()-1),CHAR(128)) -> €
B15: Subvention appliquée | C15: =IF(C13="FTE", MIN(50000,IF(C8<0.25,6000*C8,IF(C8<0.5,4500*C8,IF(C8<2,3500*C8,IF(C8<5,3000*C8,IF(C8<10,1500*C8,1000*C8)))))), IF(C13="FTI", MIN(500000, IF(AND(H14="Non",M14="Non"),0.5,IF(M14="Oui",0.6,0.55))*C10), C14 )) -> 25000 | D15: DT
C16: =C15/C11 -> 0.4166666667 | D16: du coût d'installation, TTC
B18: Coûts fixes d'exploitation | C18: 0.01 | D18: du coût d'investissement par an
B19: Durée de vie du SPIS | C19: 25 | D19: années
B20: Montant de la dette | C20: 10000 | D20: DT
C21: =C20/(C11-C15) -> 0.2857142857 | D21: du coût nette du SPIS
B22: Taux d'interêt pour la dette | C22: 0.1
B23: Durée du crédit | C23: 10 | D23: années
B25: Système de pompage et d'irrigation au diesel (SPID)
B27: Coût du SPID, TTC | C27: 50000 | D27: DT
B29: Consommation diesel | C29: 1750 | D29: litres/an
B30: Prix diesel actuel | C30: 1.48 | D30: DT/litre
B31: augementation du prix diesel | C31: 0.08 | D31: par an
B33: Coûts fixes d'exploitation | C33: 0.01 | D33: du coût d'investissement par an
B34: Durée de vie du SPID | C34: 25 | D34: années
B35: Montant de la dette | C35: 10000 | D35: DT
C36: =C35/C27 -> 0.2 | D36: du coût du SPID, TTC
B37: taux d'interêt pour la dette | C37: 0.1
B38: Durée du crédit | C38: 10 | D38: années
B40: Système de pompage et d'irrigation raccordé au réseau STEG (SPIRR)
B42: Coût du SPIRR, TTC | C42: 50000 | D42: DT
B44: Coût de raccordement au réseau STEG | C44: 50000 | D44: DT
B46: Consommation d'électricité | C46: 50000 | D46: kWh/an
B47: Tarif moyen d'électricité actuel | C47: 0.14 | D47: DT/kWh
B48: augmentation du prix d'électricité | C48: 0.08 | D48: par an
B50: Coûts fixes d'exploitation | C50: 0.01 | D50: du coût d'investissement par an
B51: Durée de vie du SPIRR | C51: 25 | D51: années
B52: Montant de la dette | C52: 10000 | D52: DT
C53: =C52/C44 -> 0.2 | D53: du coût du SPIRR, TTC
B54: taux d'interêt pour la dette | C54: 0.1
B55: Durée du crédit | C55: 10 | D55: années
B57: Hypothèses globales
B59: Taux d'actualisation | C59: 0.1
B60: Taux d'inflation | C60: 0.07

Sheet Calculs
B2: année | E2: 2020-01-01 | F2: 2021-01-01 | G2: 2022-01-01 | H2: 2023-01-01 | I2: 2024-01-01 | J2: 2025-01-01 | K2: 2026-01-01 | L2: 2027-01-01 | M2: 2028-01-01 | N2: 2029-01-01 | O2: 2030-01-01 | P2: 2031-01-01 | Q2: 2032-01-01 | R2: 2033-01-01 | S2: 2034-01-01 | T2: 2035-01-01 | U2: 2036-01-01 | V2: 2037-01-01 | W2: 2038-01-01 | X2: 2039-01-01 | Y2: 2040-01-01 | Z2: 2041-01-01 | AA2: 2042-01-01 | AB2: 2043-01-01 | AC2: 2044-01-01 | AD2: 2045-01-01 | AE2: 2046-01-01 | AF2: 2047-01-01 | AG2: 2048-01-01 | AH2: 2049-01-01 | AI2: 2050-01-01 | AJ2: 2051-01-01 | AK2: 2052-01-01 | AL2: 2053-01-01 | AM2: 2054-01-01 | AN2: 2055-01-01 | AO2: 2056-01-01 | AP2: 2057-01-01 | AQ2: 2058-01-01 | AR2: 2059-01-01 | AS2: 2060-01-01 | AT2: 2061-01-01 | AU2: 2062-01-01 | AV2: 2063-01-01 | AW2: 2064-01-01 | AX2: 2065-01-01 | AY2: 2066-01-01 | AZ2: 2067-01-01 | BA2: 2068-01-01 | BB2: 2069-01-01
B3: # | E3: 1 | F3: 2 | G3: 3 | H3: 4 | I3: 5 | J3: 6 | K3: 7 | L3: 8 | M3: 9 | N3: 10 | O3: 11 | P3: 12 | Q3: 13 | R3: 14 | S3: 15 | T3: 16 | U3: 17 | V3: 18 | W3: 19 | X3: 20 | Y3: 21 | Z3: 22 | AA3: 23 | AB3: 24 | AC3: 25 | AD3: 26 | AE3: 27 | AF3: 28 | AG3: 29 | AH3: 30 | AI3: 31 | AJ3: 32 | AK3: 33 | AL3: 34 | AM3: 35 | AN3: 36 | AO3: 37 | AP3: 38 | AQ3: 39 | AR3: 40 | AS3: 41 | AT3: 42 | AU3: 43 | AV3: 44 | AW3: 45 | AX3: 46 | AY3: 47 | AZ3: 48 | BA3: 49 | BB3: 50
B4: Facteur - inflation | E4: 1 | F4: =IF(F3<=Entrées!$C$19,E4*(1+Entrées!$C$60),0) -> 1.07 | G4: =IF(G3<=Entrées!$C$19,F4*(1+Entrées!$C$60),0) -> 1.1449 | H4: =IF(H3<=Entrées!$C$19,G4*(1+Entrées!$C$60),0) -> 1.225043 | I4: =IF(I3<=Entrées!$C$19,H4*(1+Entrées!$C$60),0) -> 1.31079601 | J4: =IF(J3<=Entrées!$C$19,I4*(1+Entrées!$C$60),0) -> 1.402551731 | K4: =IF(K3<=Entrées!$C$19,J4*(1+Entrées!$C$60),0) -> 1.500730352 | L4: =IF(L3<=Entrées!$C$19,K4*(1+Entrées!$C$60),0) -> 1.605781476 | M4: =IF(M3<=Entrées!$C$19,L4*(1+Entrées!$C$60),0) -> 1.71818618 | N4: =IF(N3<=Entrées!$C$19,M4*(1+Entrées!$C$60),0) -> 1.838459212 | O4: =IF(O3<=Entrées!$C$19,N4*(1+Entrées!$C$60),0) -> 1.967151357 | P4: =IF(P3<=Entrées!$C$19,O4*(1+Entrées!$C$60),0) -> 2.104851952 | Q4: =IF(Q3<=Entrées!$C$19,P4*(1+Entrées!$C$60),0) -> 2.252191589 | R4: =IF(R3<=Entrées!$C$19,Q4*(1+Entrées!$C$60),0) -> 2.409845 | S4: =IF(S3<=Entrées!$C$19,R4*(1+Entrées!$C$60),0) -> 2.57853415 | T4: =IF(T3<=Entrées!$C$19,S4*(1+Entrées!$C$60),0) -> 2.759031541 | U4: =IF(U3<=Entrées!$C$19,T4*(1+Entrées!$C$60),0) -> 2.952163749 | V4: =IF(V3<=Entrées!$C$19,U4*(1+Entrées!$C$60),0) -> 3.158815211 | W4: =IF(W3<=Entrées!$C$19,V4*(1+Entrées!$C$60),0) -> 3.379932276 | X4: =IF(X3<=Entrées!$C$19,W4*(1+Entrées!$C$60),0) -> 3.616527535 | Y4: =IF(Y3<=Entrées!$C$19,X4*(1+Entrées!$C$60),0) -> 3.869684462 | Z4: =IF(Z3<=Entrées!$C$19,Y4*(1+Entrées!$C$60),0) -> 4.140562375 | AA4: =IF(AA3<=Entrées!$C$19,Z4*(1+Entrées!$C$60),0) -> 4.430401741 | AB4: =IF(AB3<=Entrées!$C$19,AA4*(1+Entrées!$C$60),0) -> 4.740529863 | AC4: =IF(AC3<=Entrées!$C$19,AB4*(1+Entrées!$C$60),0) -> 5.072366953 | AD4: =IF(AD3<=Entrées!$C$19,AC4*(1+Entrées!$C$60),0) -> 0 | AE4: =IF(AE3<=Entrées!$C$19,AD4*(1+Entrées!$C$60),0) -> 0 | AF4: =IF(AF3<=Entrées!$C$19,AE4*(1+Entrées!$C$60),0) -> 0 | AG4: =IF(AG3<=Entrées!$C$19,AF4*(1+Entrées!$C$60),0) -> 0 | AH4: =IF(AH3<=Entrées!$C$19,AG4*(1+Entrées!$C$60),0) -> 0 | AI4: =IF(AI3<=Entrées!$C$19,AH4*(1+Entrées!$C$60),0) -> 0 | AJ4: =IF(AJ3<=Entrées!$C$19,AI4*(1+Entrées!$C$60),0) -> 0 | AK4: =IF(AK3<=Entrées!$C$19,AJ4*(1+Entrées!$C$60),0) -> 0 | AL4: =IF(AL3<=Entrées!$C$19,AK4*(1+Entrées!$C$60),0) -> 0 | AM4: =IF(AM3<=Entrées!$C$19,AL4*(1+Entrées!$C$60),0) -> 0
A6: Flux de trésorerie du système de pompage et d'irrigation à énergie solaire (SPIS)
B8: Coût fixes d'exploitation
B9: Valeur réele | C9: DT | E9: =Entrées!C18*Entrées!C10 -> 500 | F9: =IF(F3<=Entrées!$C$19,E9,0) -> 500 | G9: =IF(G3<=Entrées!$C$19,F9,0) -> 500 | H9: =IF(H3<=Entrées!$C$19,G9,0) -> 500 | I9: =IF(I3<=Entrées!$C$19,H9,0) -> 500 | J9: =IF(J3<=Entrées!$C$19,I9,0) -> 500 | K9: =IF(K3<=Entrées!$C$19,J9,0) -> 500 | L9: =IF(L3<=Entrées!$C$19,K9,0) -> 500 | M9: =IF(M3<=Entrées!$C$19,L9,0) -> 500 | N9: =IF(N3<=Entrées!$C$19,M9,0) -> 500 | O9: =IF(O3<=Entrées!$C$19,N9,0) -> 500 | P9: =IF(P3<=Entrées!$C$19,O9,0) -> 500 | Q9: =IF(Q3<=Entrées!$C$19,P9,0) -> 500 | R9: =IF(R3<=Entrées!$C$19,Q9,0) -> 500 | S9: =IF(S3<=Entrées!$C$19,R9,0) -> 500 | T9: =IF(T3<=Entrées!$C$19,S9,0) -> 500 | U9: =IF(U3<=Entrées!$C$19,T9,0) -> 500 | V9: =IF(V3<=Entrées!$C$19,U9,0) -> 500 | W9: =IF(W3<=Entrées!$C$19,V9,0) -> 500 | X9: =IF(X3<=Entrées!$C$19,W9,0) -> 500 | Y9: =IF(Y3<=Entrées!$C$19,X9,0) -> 500 | Z9: =IF(Z3<=Entrées!$C$19,Y9,0) -> 500 | AA9: =IF(AA3<=Entrées!$C$19,Z9,0) -> 500 | AB9: =IF(AB3<=Entrées!$C$19,AA9,0) -> 500 | AC9: =IF(AC3<=Entrées!$C$19,AB9,0) -> 500 | AD9: =IF(AD3<=Entrées!$C$19,AC9,0) -> 0 | AE9: =IF(AE3<=Entrées!$C$19,AD9,0) -> 0 | AF9: =IF(AF3<=Entrées!$C$19,AE9,0) -> 0 | AG9: =IF(AG3<=Entrées!$C$19,AF9,0) -> 0 | AH9: =IF(AH3<=Entrées!$C$19,AG9,0) -> 0 | AI9: =IF(AI3<=Entrées!$C$19,AH9,0) -> 0 | AJ9: =IF(AJ3<=Entrées!$C$19,AI9,0) -> 0 | AK9: =IF(AK3<=Entrées!$C$19,AJ9,0) -> 0 | AL9: =IF(AL3<=Entrées!$C$19,AK9,0) -> 0 | AM9: =IF(AM3<=Entrées!$C$19,AL9,0) -> 0 | AN9: =IF(AN3<=Entrées!$C$19,AM9,0) -> 0 | AO9: =IF(AO3<=Entrées!$C$19,AN9,0) -> 0 | AP9: =IF(AP3<=Entrées!$C$19,AO9,0) -> 0 | AQ9: =IF(AQ3<=Entrées!$C$19,AP9,0) -> 0 | AR9: =IF(AR3<=Entrées!$C$19,AQ9,0) -> 0 | AS9: =IF(AS3<=Entrées!$C$19,AR9,0) -> 0 | AT9: =IF(AT3<=Entrées!$C$19,AS9,0) -> 0 | AU9: =IF(AU3<=Entrées!$C$19,AT9,0) -> 0 | AV9: =IF(AV3<=Entrées!$C$19,AU9,0) -> 0 | AW9: =IF(AW3<=Entrées!$C$19,AV9,0) -> 0 | AX9: =IF(AX3<=Entrées!$C$19,AW9,0) -> 0 | AY9: =IF(AY3<=Entrées!$C$19,AX9,0) -> 0 | AZ9: =IF(AZ3<=Entrées!$C$19,AY9,0) -> 0 | BA9: =IF(BA3<=Entrées!$C$19,AZ9,0) -> 0 | BB9: =IF(BB3<=Entrées!$C$19,BA9,0) -> 0
B10: Valeur nominale | C10: DT | E10: =E9*E4 -> 500 | F10: 535 | G10: 572.45 | H10: 612.5215 | I10: 655.398005 | J10: 701.2758654 | K10: 750.3651759 | L10: 802.8907382 | M10: 859.0930899 | N10: 919.2296062 | O10: 983.5756786 | P10: 1052.425976 | Q10: 1126.095794 | R10: 1204.9225 | S10: 1289.267075 | T10: 1379.51577 | U10: 1476.081874 | V10: 1579.407605 | W10: 1689.966138 | X10: 1808.263768 | Y10: 1934.842231 | Z10: 2070.281187 | AA10: 2215.200871 | AB10: 2370.264931 | AC10: 2536.183477 | AD10: 0 | AE10: 0 | AF10: 0 | AG10: 0 | AH10: 0 | AI10: 0 | AJ10: 0 | AK10: =AK9*AK4 -> 0 | AL10: 0 | AM10: 0 | AN10: 0 | AO10: 0 | AP10: 0 | AQ10: 0 | AR10: 0 | AS10: 0 | AT10: 0 | AU10: 0 | AV10: 0 | AW10: 0 | AX10: 0 | AY10: 0 | AZ10: 0 | BA10: 0 | BB10: 0
B12: Service de la dette
B13: Solde de trésorerie reporté | C13: DT | E13: =Entrées!C20 -> 10000 | F13: =E13-E16 -> 9372.546051 | G13: =F13-(F14-F15) -> 8682.346707 | H13: 7923.127429 | I13: 7087.986224 | J13: 6169.330897 | K13: 5158.810038 | L13: 4047.237093 | M13: 2824.506853 | N13: 1479.50359 | O13: 0 | P13: 0 | Q13: 0 | R13: 0 | S13: 0 | T13: 0 | U13: 0 | V13: 0 | W13: 0 | X13: 0 | Y13: 0 | Z13: 0 | AA13: 0 | AB13: 0 | AC13: 0 | AD13: 0 | AE13: 0 | AF13: 0 | AG13: 0 | AH13: 0 | AI13: 0 | AJ13: 0 | AK13: 0 | AL13: 0 | AM13: 0 | AN13: =AM13-(AM14-AM15) -> 0 | AO13: 0 | AP13: 0 | AQ13: 0 | AR13: 0 | AS13: 0 | AT13: 0 | AU13: 0 | AV13: 0 | AW13: 0 | AX13: 0 | AY13: 0 | AZ13: 0 | BA13: 0 | BB13: 0
B14: Service de la dette (annuités) | C14: DT | E14: =IFERROR(E13*Entrées!$C$22/(1-(1+Entrées!$C$22)^-(Entrées!$C$23-Calculs!E3+1)),0) -> 1627.453949 | F14: =IFERROR(F13*Entrées!$C$22/(1-(1+Entrées!$C$22)^-(Entrées!$C$23-Calculs!F3+1)),0) -> 1627.453949 | G14: =IFERROR(G13*Entrées!$C$22/(1-(1+Entrées!$C$22)^-(Entrées!$C$23-Calculs!G3+1)),0) -> 1627.453949 | H14: =IFERROR(H13*Entrées!$C$22/(1-(1+Entrées!$C$22)^-(Entrées!$C$23-Calculs!H3+1)),0) -> 1627.453949 | I14: =IFERROR(I13*Entrées!$C$22/(1-(1+Entrées!$C$22)^-(Entrées!$C$23-Calculs!I3+1)),0) -> 1627.453949 | J14: =IFERROR(J13*Entrées!$C$22/(1-(1+Entrées!$C$22)^-(Entrées!$C$23-Calculs!J3+1)),0) -> 1627.453949 | K14: =IFERROR(K13*Entrées!$C$22/(1-(1+Entrées!$C$22)^-(Entrées!$C$23-Calculs!K3+1)),0) -> 1627.453949 | L14: =IFERROR(L13*Entrées!$C$22/(1-(1+Entrées!$C$22)^-(Entrées!$C$23-Calculs!L3+1)),0) -> 1627.453949 | M14: =IFERROR(M13*Entrées!$C$22/(1-(1+Entrées!$C$22)^-(Entrées!$C$23-Calculs!M3+1)),0) -> 1627.453949 | N14: =IFERROR(N13*Entrées!$C$22/(1-(1+Entrées!$C$22)^-(Entrées!$C$23-Calculs!N3+1)),0) -> 1627.453949 | O14: =IFERROR(O13*Entrées!$C$22/(1-(1+Entrées!$C$22)^-(Entrées!$C$23-Calculs!O3+1)),0) -> 0 | P14: =IFERROR(P13*Entrées!$C$22/(1-(1+Entrées!$C$22)^-(Entrées!$C$23-Calculs!P3+1)),0) -> 0 | Q14: =IFERROR(Q13*Entrées!$C$22/(1-(1+Entrées!$C$22)^-(Entrées!$C$23-Calculs!Q3+1)),0) -> 0 | R14: =IFERROR(R13*Entrées!$C$22/(1-(1+Entrées!$C$22)^-(Entrées!$C$23-Calculs!R3+1)),0) -> 0 | S14: =IFERROR(S13*Entrées!$C$22/(1-(1+Entrées!$C$22)^-(Entrées!$C$23-Calculs!S3+1)),0) -> 0 | T14: =IFERROR(T13*Entrées!$C$22/(1-(1+Entrées!$C$22)^-(Entrées!$C$23-Calculs!T3+1)),0) -> 0 | U14: =IFERROR(U13*Entrées!$C$22/(1-(1+Entrées!$C$22)^-(Entrées!$C$23-Calculs!U3+1)),0) -> 0 | V14: =IFERROR(V13*Entrées!$C$22/(1-(1+Entrées!$C$22)^-(Entrées!$C$23-Calculs!V3+1)),0) -> 0 | W14: =IFERROR(W13*Entrées!$C$22/(1-(1+Entrées!$C$22)^-(Entrées!$C$23-Calculs!W3+1)),0) -> 0 | X14: =IFERROR(X13*Entrées!$C$22/(1-(1+Entrées!$C$22)^-(Entrées!$C$23-Calculs!X3+1)),0) -> 0 | Y14: =IFERROR(Y13*Entrées!$C$22/(1-(1+Entrées!$C$22)^-(Entrées!$C$23-Calculs!Y3+1)),0) -> 0 | Z14: =IFERROR(Z13*Entrées!$C$22/(1-(1+Entrées!$C$22)^-(Entrées!$C$23-Calculs!Z3+1)),0) -> 0 | AA14: =IFERROR(AA13*Entrées!$C$22/(1-(1+Entrées!$C$22)^-(Entrées!$C$23-Calculs!AA3+1)),0) -> 0 | AB14: =IFERROR(AB13*Entrées!$C$22/(1-(1+Entrées!$C$22)^-(Entrées!$C$23-Calculs!AB3+1)),0) -> 0 | AC14: =IFERROR(AC13*Entrées!$C$22/(1-(1+Entrées!$C$22)^-(Entrées!$C$23-Calculs!AC3+1)),0) -> 0 | AD14: =IFERROR(AD13*Entrées!$C$22/(1-(1+Entrées!$C$22)^-(Entrées!$C$23-Calculs!AD3+1)),0) -> 0 | AE14: =IFERROR(AE13*Entrées!$C$22/(1-(1+Entrées!$C$22)^-(Entrées!$C$23-Calculs!AE3+1)),0) -> 0 | AF14: =IFERROR(AF13*Entrées!$C$22/(1-(1+Entrées!$C$22)^-(Entrées!$C$23-Calculs!AF3+1)),0) -> 0 | AG14: =IFERROR(AG13*Entrées!$C$22/(1-(1+Entrées!$C$22)^-(Entrées!$C$23-Calculs!AG3+1)),0) -> 0 | AH14: =IFERROR(AH13*Entrées!$C$22/(1-(1+Entrées!$C$22)^-(Entrées!$C$23-Calculs!AH3+1)),0) -> 0 | AI14: =IFERROR(AI13*Entrées!$C$22/(1-(1+Entrées!$C$22)^-(Entrées!$C$23-Calculs!AI3+1)),0) -> 0 | AJ14: =IFERROR(AJ13*Entrées!$C$22/(1-(1+Entrées!$C$22)^-(Entrées!$C$23-Calculs!AJ3+1)),0) -> 0 | AK14: =IFERROR(AK13*Entrées!$C$22/(1-(1+Entrées!$C$22)^-(Entrées!$C$23-Calculs!AK3+1)),0) -> 0 | AL14: =IFERROR(AL13*Entrées!$C$22/(1-(1+Entrées!$C$22)^-(Entrées!$C$23-Calculs!AL3+1)),0) -> 0 | AM14: =IFERROR(AM13*Entrées!$C$22/(1-(1+Entrées!$C$22)^-(Entrées!$C$23-Calculs!AM3+1)),0) -> 0 | AN14: =IFERROR(AN13*Entrées!$C$22/(1-(1+Entrées!$C$22)^-(Entrées!$C$23-Calculs!AN3+1)),0) -> 0 | AO14: =IFERROR(AO13*Entrées!$C$22/(1-(1+Entrées!$C$22)^-(Entrées!$C$23-Calculs!AO3+1)),0) -> 0 | AP14: =IFERROR(AP13*Entrées!$C$22/(1-(1+Entrées!$C$22)^-(Entrées!$C$23-Calculs!AP3+1)),0) -> 0 | AQ14: =IFERROR(AQ13*Entrées!$C$22/(1-(1+Entrées!$C$22)^-(Entrées!$C$23-Calculs!AQ3+1)),0) -> 0 | AR14: =IFERROR(AR13*Entrées!$C$22/(1-(1+Entrées!$C$22)^-(Entrées!$C$23-Calculs!AR3+1)),0) -> 0 | AS14: =IFERROR(AS13*Entrées!$C$22/(1-(1+Entrées!$C$22)^-(Entrées!$C$23-Calculs!AS3+1)),0) -> 0 | AT14: =IFERROR(AT13*Entrées!$C$22/(1-(1+Entrées!$C$22)^-(Entrées!$C$23-Calculs!AT3+1)),0) -> 0 | AU14: =IFERROR(AU13*Entrées!$C$22/(1-(1+Entrées!$C$22)^-(Entrées!$C$23-Calculs!AU3+1)),0) -> 0 | AV14: =IFERROR(AV13*Entrées!$C$22/(1-(1+Entrées!$C$22)^-(Entrées!$C$23-Calculs!AV3+1)),0) -> 0 | AW14: =IFERROR(AW13*Entrées!$C$22/(1-(1+Entrées!$C$22)^-(Entrées!$C$23-Calculs!AW3+1)),0) -> 0 | AX14: =IFERROR(AX13*Entrées!$C$22/(1-(1+Entrées!$C$22)^-(Entrées!$C$23-Calculs!AX3+1)),0) -> 0 | AY14: =IFERROR(AY13*Entrées!$C$22/(1-(1+Entrées!$C$22)^-(Entrées!$C$23-Calculs!AY3+1)),0) -> 0 | AZ14: =IFERROR(AZ13*Entrées!$C$22/(1-(1+Entrées!$C$22)^-(Entrées!$C$23-Calculs!AZ3+1)),0) -> 0 | BA14: =IFERROR(BA13*Entrées!$C$22/(1-(1+Entrées!$C$22)^-(Entrées!$C$23-Calculs!BA3+1)),0) -> 0 | BB14: =IFERROR(BB13*Entrées!$C$22/(1-(1+Entrées!$C$22)^-(Entrées!$C$23-Calculs!BB3+1)),0) -> 0
B15: Interet | C15: DT | E15: =Entrées!$C$22*E13 -> 1000 | F15: =Entrées!$C$22*F13 -> 937.2546051 | G15: =Entrées!$C$22*G13 -> 868.2346707 | H15: =Entrées!$C$22*H13 -> 792.3127429 | I15: =Entrées!$C$22*I13 -> 708.7986224 | J15: =Entrées!$C$22*J13 -> 616.9330897 | K15: =Entrées!$C$22*K13 -> 515.8810038 | L15: =Entrées!$C$22*L13 -> 404.7237093 | M15: =Entrées!$C$22*M13 -> 282.4506853 | N15: =Entrées!$C$22*N13 -> 147.950359 | O15: =Entrées!$C$22*O13 -> 0 | P15: =Entrées!$C$22*P13 -> 0 | Q15: =Entrées!$C$22*Q13 -> 0 | R15: =Entrées!$C$22*R13 -> 0 | S15: =Entrées!$C$22*S13 -> 0 | T15: =Entrées!$C$22*T13 -> 0 | U15: =Entrées!$C$22*U13 -> 0 | V15: =Entrées!$C$22*V13 -> 0 | W15: =Entrées!$C$22*W13 -> 0 | X15: =Entrées!$C$22*X13 -> 0 | Y15: =Entrées!$C$22*Y13 -> 0 | Z15: =Entrées!$C$22*Z13 -> 0 | AA15: =Entrées!$C$22*AA13 -> 0 | AB15: =Entrées!$C$22*AB13 -> 0 | AC15: =Entrées!$C$22*AC13 -> 0 | AD15: =Entrées!$C$22*AD13 -> 0 | AE15: =Entrées!$C$22*AE13 -> 0 | AF15: =Entrées!$C$22*AF13 -> 0 | AG15: =Entrées!$C$22*AG13 -> 0 | AH15: =Entrées!$C$22*AH13 -> 0 | AI15: =Entrées!$C$22*AI13 -> 0 | AJ15: =Entrées!$C$22*AJ13 -> 0 | AK15: =Entrées!$C$22*AK13 -> 0 | AL15: =Entrées!$C$22*AL13 -> 0 | AM15: =Entrées!$C$22*AM13 -> 0 | AN15: =Entrées!$C$22*AN13 -> 0 | AO15: =Entrées!$C$22*AO13 -> 0 | AP15: =Entrées!$C$22*AP13 -> 0 | AQ15: =Entrées!$C$22*AQ13 -> 0 | AR15: =Entrées!$C$22*AR13 -> 0 | AS15: =Entrées!$C$22*AS13 -> 0 | AT15: =Entrées!$C$22*AT13 -> 0 | AU15: =Entrées!$C$22*AU13 -> 0 | AV15: =Entrées!$C$22*AV13 -> 0 | AW15: =Entrées!$C$22*AW13 -> 0 | AX15: =Entrées!$C$22*AX13 -> 0 | AY15: =Entrées!$C$22*AY13 -> 0 | AZ15: =Entrées!$C$22*AZ13 -> 0 | BA15: =Entrées!$C$22*BA13 -> 0 | BB15: =Entrées!$C$22*BB13 -> 0
B16: Montant du principal | C16: DT | E16: =(E14-E15) -> 627.4539488 | F16: =(F14-F15) -> 690.1993437 | G16: 759.2192781 | H16: 835.1412059 | I16: 918.6553265 | J16: 1010.520859 | K16: 1111.572945 | L16: 1222.73024 | M16: 1345.003263 | N16: 1479.50359 | O16: 0 | P16: 0 | Q16: 0 | R16: 0 | S16: 0 | T16: 0 | U16: 0 | V16: 0 | W16: 0 | X16: 0 | Y16: 0 | Z16: 0 | AA16: 0 | AB16: 0 | AC16: 0 | AD16: 0 | AE16: 0 | AF16: 0 | AG16: 0 | AH16: 0 | AI16: 0 | AJ16: 0 | AK16: 0 | AL16: 0 | AM16: 0 | AN16: =(AN14-AN15) -> 0 | AO16: =(AO14-AO15) -> 0 | AP16: =(AP14-AP15) -> 0 | AQ16: =(AQ14-AQ15) -> 0 | AR16: =(AR14-AR15) -> 0 | AS16: =(AS14-AS15) -> 0 | AT16: =(AT14-AT15) -> 0 | AU16: =(AU14-AU15) -> 0 | AV16: =(AV14-AV15) -> 0 | AW16: =(AW14-AW15) -> 0 | AX16: =(AX14-AX15) -> 0 | AY16: =(AY14-AY15) -> 0 | AZ16: =(AZ14-AZ15) -> 0 | BA16: =(BA14-BA15) -> 0 | BB16: =(BB14-BB15) -> 0
B18: Capitaux propres initials | C18: DT | D18: =Entrées!C11-Entrées!C15-Calculs!E13 -> 25000
B20: Flux de trésorerie net | C20: DT | E20: =-(E14+E10)-D18 -> -27127.45395 | F20: =-(F14+F10) -> -2162.453949 | G20: -2199.903949 | H20: -2239.975449 | I20: -2282.851954 | J20: -2328.729814 | K20: -2377.819125 | L20: -2430.344687 | M20: -2486.547039 | N20: -2546.683555 | O20: -983.5756786 | P20: -1052.425976 | Q20: -1126.095794 | R20: -1204.9225 | S20: -1289.267075 | T20: -1379.51577 | U20: -1476.081874 | V20: -1579.407605 | W20: -1689.966138 | X20: -1808.263768 | Y20: -1934.842231 | Z20: -2070.281187 | AA20: -2215.200871 | AB20: -2370.264931 | AC20: -2536.183477 | AD20: 0 | AE20: 0 | AF20: 0 | AG20: 0 | AH20: 0 | AI20: 0 | AJ20: 0 | AK20: 0 | AL20: =-(AL14+AL10) -> 0 | AM20: 0 | AN20: 0 | AO20: 0 | AP20: 0 | AQ20: 0 | AR20: 0 | AS20: 0 | AT20: 0 | AU20: 0 | AV20: 0 | AW20: 0 | AX20: 0 | AY20: 0 | AZ20: 0 | BA20: 0 | BB20: 0
B22: Coût totale actualisé | C22: DT | D22: =-XNPV(Entrées!C59,Calculs!E20:BB20,Calculs!$E$2:$BB$2) -> 45138.70571
B23: Coût totale actualisé par année de la vie du projet | C23: DT | D23: =D22/Entrées!C19 -> 1805.548229
A25: Flux de trésorerie du système de pompage et d'irrigation au diesel (SPID)
B27: Coût d'exploitation
B28: Coût fixes d'exploitation (valeur réele) | C28: DT | E28: =Entrées!C33*Entrées!C27 -> 500 | F28: =IF(F3<=Entrées!$C$34,E28,0) -> 500 | G28: =IF(G3<=Entrées!$C$34,F28,0) -> 500 | H28: =IF(H3<=Entrées!$C$34,G28,0) -> 500 | I28: =IF(I3<=Entrées!$C$34,H28,0) -> 500 | J28: =IF(J3<=Entrées!$C$34,I28,0) -> 500 | K28: =IF(K3<=Entrées!$C$34,J28,0) -> 500 | L28: =IF(L3<=Entrées!$C$34,K28,0) -> 500 | M28: =IF(M3<=Entrées!$C$34,L28,0) -> 500 | N28: =IF(N3<=Entrées!$C$34,M28,0) -> 500 | O28: =IF(O3<=Entrées!$C$34,N28,0) -> 500 | P28: =IF(P3<=Entrées!$C$34,O28,0) -> 500 | Q28: =IF(Q3<=Entrées!$C$34,P28,0) -> 500 | R28: =IF(R3<=Entrées!$C$34,Q28,0) -> 500 | S28: =IF(S3<=Entrées!$C$34,R28,0) -> 500 | T28: =IF(T3<=Entrées!$C$34,S28,0) -> 500 | U28: =IF(U3<=Entrées!$C$34,T28,0) -> 500 | V28: =IF(V3<=Entrées!$C$34,U28,0) -> 500 | W28: =IF(W3<=Entrées!$C$34,V28,0) -> 500 | X28: =IF(X3<=Entrées!$C$34,W28,0) -> 500 | Y28: =IF(Y3<=Entrées!$C$34,X28,0) -> 500 | Z28: =IF(Z3<=Entrées!$C$34,Y28,0) -> 500 | AA28: =IF(AA3<=Entrées!$C$34,Z28,0) -> 500 | AB28: =IF(AB3<=Entrées!$C$34,AA28,0) -> 500 | AC28: =IF(AC3<=Entrées!$C$34,AB28,0) -> 500 | AD28: =IF(AD3<=Entrées!$C$34,AC28,0) -> 0 | AE28: =IF(AE3<=Entrées!$C$34,AD28,0) -> 0 | AF28: =IF(AF3<=Entrées!$C$34,AE28,0) -> 0 | AG28: =IF(AG3<=Entrées!$C$34,AF28,0) -> 0 | AH28: =IF(AH3<=Entrées!$C$34,AG28,0) -> 0 | AI28: =IF(AI3<=Entrées!$C$34,AH28,0) -> 0 | AJ28: =IF(AJ3<=Entrées!$C$34,AI28,0) -> 0 | AK28: =IF(AK3<=Entrées!$C$34,AJ28,0) -> 0 | AL28: =IF(AL3<=Entrées!$C$34,AK28,0) -> 0 | AM28: =IF(AM3<=Entrées!$C$34,AL28,0) -> 0 | AN28: =IF(AN3<=Entrées!$C$34,AM28,0) -> 0 | AO28: =IF(AO3<=Entrées!$C$34,AN28,0) -> 0 | AP28: =IF(AP3<=Entrées!$C$34,AO28,0) -> 0 | AQ28: =IF(AQ3<=Entrées!$C$34,AP28,0) -> 0 | AR28: =IF(AR3<=Entrées!$C$34,AQ28,0) -> 0 | AS28: =IF(AS3<=Entrées!$C$34,AR28,0) -> 0 | AT28: =IF(AT3<=Entrées!$C$34,AS28,0) -> 0 | AU28: =IF(AU3<=Entrées!$C$34,AT28,0) -> 0 | AV28: =IF(AV3<=Entrées!$C$34,AU28,0) -> 0 | AW28: =IF(AW3<=Entrées!$C$34,AV28,0) -> 0 | AX28: =IF(AX3<=Entrées!$C$34,AW28,0) -> 0 | AY28: =IF(AY3<=Entrées!$C$34,AX28,0) -> 0 | AZ28: =IF(AZ3<=Entrées!$C$34,AY28,0) -> 0 | BA28: =IF(BA3<=Entrées!$C$34,AZ28,0) -> 0 | BB28: =IF(BB3<=Entrées!$C$34,BA28,0) -> 0
B29: Coût fixes d'exploitation (valeur nominale) | C29: DT | E29: =E28*E4 -> 500 | F29: 535 | G29: 572.45 | H29: 612.5215 | I29: 655.398005 | J29: 701.2758654 | K29: 750.3651759 | L29: 802.8907382 | M29: 859.0930899 | N29: 919.2296062 | O29: 983.5756786 | P29: 1052.425976 | Q29: 1126.095794 | R29: 1204.9225 | S29: 1289.267075 | T29: 1379.51577 | U29: 1476.081874 | V29: 1579.407605 | W29: 1689.966138 | X29: 1808.263768 | Y29: 1934.842231 | Z29: 2070.281187 | AA29: 2215.200871 | AB29: 2370.264931 | AC29: 2536.183477 | AD29: 0 | AE29: 0 | AF29: 0 | AG29: 0 | AH29: 0 | AI29: 0 | AJ29: 0 | AK29: =AK28*AK4 -> 0 | AL29: 0 | AM29: 0 | AN29: 0 | AO29: 0 | AP29: 0 | AQ29: 0 | AR29: 0 | AS29: 0 | AT29: 0 | AU29: 0 | AV29: 0 | AW29: 0 | AX29: 0 | AY29: 0 | AZ29: 0 | BA29: 0 | BB29: 0
B30: Consommation diesel annuelle | C30: litres | E30: =Entrées!$C$29 -> 1750 | F30: =IF(F3<=Entrées!$C$34,E30,0) -> 1750 | G30: =IF(G3<=Entrées!$C$34,F30,0) -> 1750 | H30: =IF(H3<=Entrées!$C$34,G30,0) -> 1750 | I30: =IF(I3<=Entrées!$C$34,H30,0) -> 1750 | J30: =IF(J3<=Entrées!$C$34,I30,0) -> 1750 | K30: =IF(K3<=Entrées!$C$34,J30,0) -> 1750 | L30: =IF(L3<=Entrées!$C$34,K30,0) -> 1750 | M30: =IF(M3<=Entrées!$C$34,L30,0) -> 1750 | N30: =IF(N3<=Entrées!$C$34,M30,0) -> 1750 | O30: =IF(O3<=Entrées!$C$34,N30,0) -> 1750 | P30: =IF(P3<=Entrées!$C$34,O30,0) -> 1750 | Q30: =IF(Q3<=Entrées!$C$34,P30,0) -> 1750 | R30: =IF(R3<=Entrées!$C$34,Q30,0) -> 1750 | S30: =IF(S3<=Entrées!$C$34,R30,0) -> 1750 | T30: =IF(T3<=Entrées!$C$34,S30,0) -> 1750 | U30: =IF(U3<=Entrées!$C$34,T30,0) -> 1750 | V30: =IF(V3<=Entrées!$C$34,U30,0) -> 1750 | W30: =IF(W3<=Entrées!$C$34,V30,0) -> 1750 | X30: =IF(X3<=Entrées!$C$34,W30,0) -> 1750 | Y30: =IF(Y3<=Entrées!$C$34,X30,0) -> 1750 | Z30: =IF(Z3<=Entrées!$C$34,Y30,0) -> 1750 | AA30: =IF(AA3<=Entrées!$C$34,Z30,0) -> 1750 | AB30: =IF(AB3<=Entrées!$C$34,AA30,0) -> 1750 | AC30: =IF(AC3<=Entrées!$C$34,AB30,0) -> 1750 | AD30: =IF(AD3<=Entrées!$C$34,AC30,0) -> 0 | AE30: =IF(AE3<=Entrées!$C$34,AD30,0) -> 0 | AF30: =IF(AF3<=Entrées!$C$34,AE30,0) -> 0 | AG30: =IF(AG3<=Entrées!$C$34,AF30,0) -> 0 | AH30: =IF(AH3<=Entrées!$C$34,AG30,0) -> 0 | AI30: =IF(AI3<=Entrées!$C$34,AH30,0) -> 0 | AJ30: =IF(AJ3<=Entrées!$C$34,AI30,0) -> 0 | AK30: =IF(AK3<=Entrées!$C$34,AJ30,0) -> 0 | AL30: =IF(AL3<=Entrées!$C$34,AK30,0) -> 0 | AM30: =IF(AM3<=Entrées!$C$34,AL30,0) -> 0 | AN30: =IF(AN3<=Entrées!$C$34,AM30,0) -> 0 | AO30: =IF(AO3<=Entrées!$C$34,AN30,0) -> 0 | AP30: =IF(AP3<=Entrées!$C$34,AO30,0) -> 0 | AQ30: =IF(AQ3<=Entrées!$C$34,AP30,0) -> 0 | AR30: =IF(AR3<=Entrées!$C$34,AQ30,0) -> 0 | AS30: =IF(AS3<=Entrées!$C$34,AR30,0) -> 0 | AT30: =IF(AT3<=Entrées!$C$34,AS30,0) -> 0 | AU30: =IF(AU3<=Entrées!$C$34,AT30,0) -> 0 | AV30: =IF(AV3<=Entrées!$C$34,AU30,0) -> 0 | AW30: =IF(AW3<=Entrées!$C$34,AV30,0) -> 0 | AX30: =IF(AX3<=Entrées!$C$34,AW30,0) -> 0 | AY30: =IF(AY3<=Entrées!$C$34,AX30,0) -> 0 | AZ30: =IF(AZ3<=Entrées!$C$34,AY30,0) -> 0 | BA30: =IF(BA3<=Entrées!$C$34,AZ30,0) -> 0 | BB30: =IF(BB3<=Entrées!$C$34,BA30,0) -> 0
B31: Prix diesel (nominale) | C31: DT/litre | E31: =Entrées!C30 -> 1.48 | F31: =IF(F3<=Entrées!$C$34,E31*(1+Entrées!$C$31),0) -> 1.5984 | G31: =IF(G3<=Entrées!$C$34,F31*(1+Entrées!$C$31),0) -> 1.726272 | H31: =IF(H3<=Entrées!$C$34,G31*(1+Entrées!$C$31),0) -> 1.86437376 | I31: =IF(I3<=Entrées!$C$34,H31*(1+Entrées!$C$31),0) -> 2.013523661 | J31: =IF(J3<=Entrées!$C$34,I31*(1+Entrées!$C$31),0) -> 2.174605554 | K31: =IF(K3<=Entrées!$C$34,J31*(1+Entrées!$C$31),0) -> 2.348573998 | L31: =IF(L3<=Entrées!$C$34,K31*(1+Entrées!$C$31),0) -> 2.536459918 | M31: =IF(M3<=Entrées!$C$34,L31*(1+Entrées!$C$31),0) -> 2.739376711 | N31: =IF(N3<=Entrées!$C$34,M31*(1+Entrées!$C$31),0) -> 2.958526848 | O31: =IF(O3<=Entrées!$C$34,N31*(1+Entrées!$C$31),0) -> 3.195208996 | P31: =IF(P3<=Entrées!$C$34,O31*(1+Entrées!$C$31),0) -> 3.450825716 | Q31: =IF(Q3<=Entrées!$C$34,P31*(1+Entrées!$C$31),0) -> 3.726891773 | R31: =IF(R3<=Entrées!$C$34,Q31*(1+Entrées!$C$31),0) -> 4.025043115 | S31: =IF(S3<=Entrées!$C$34,R31*(1+Entrées!$C$31),0) -> 4.347046564 | T31: =IF(T3<=Entrées!$C$34,S31*(1+Entrées!$C$31),0) -> 4.694810289 | U31: =IF(U3<=Entrées!$C$34,T31*(1+Entrées!$C$31),0) -> 5.070395112 | V31: =IF(V3<=Entrées!$C$34,U31*(1+Entrées!$C$31),0) -> 5.476026721 | W31: =IF(W3<=Entrées!$C$34,V31*(1+Entrées!$C$31),0) -> 5.914108859 | X31: =IF(X3<=Entrées!$C$34,W31*(1+Entrées!$C$31),0) -> 6.387237567 | Y31: =IF(Y3<=Entrées!$C$34,X31*(1+Entrées!$C$31),0) -> 6.898216573 | Z31: =IF(Z3<=Entrées!$C$34,Y31*(1+Entrées!$C$31),0) -> 7.450073899 | AA31: =IF(AA3<=Entrées!$C$34,Z31*(1+Entrées!$C$31),0) -> 8.046079811 | AB31: =IF(AB3<=Entrées!$C$34,AA31*(1+Entrées!$C$31),0) -> 8.689766195 | AC31: =IF(AC3<=Entrées!$C$34,AB31*(1+Entrées!$C$31),0) -> 9.384947491 | AD31: =IF(AD3<=Entrées!$C$34,AC31*(1+Entrées!$C$31),0) -> 0 | AE31: =IF(AE3<=Entrées!$C$34,AD31*(1+Entrées!$C$31),0) -> 0 | AF31: =IF(AF3<=Entrées!$C$34,AE31*(1+Entrées!$C$31),0) -> 0 | AG31: =IF(AG3<=Entrées!$C$34,AF31*(1+Entrées!$C$31),0) -> 0 | AH31: =IF(AH3<=Entrées!$C$34,AG31*(1+Entrées!$C$31),0) -> 0 | AI31: =IF(AI3<=Entrées!$C$34,AH31*(1+Entrées!$C$31),0) -> 0 | AJ31: =IF(AJ3<=Entrées!$C$34,AI31*(1+Entrées!$C$31),0) -> 0 | AK31: =IF(AK3<=Entrées!$C$34,AJ31*(1+Entrées!$C$31),0) -> 0 | AL31: =IF(AL3<=Entrées!$C$34,AK31*(1+Entrées!$C$31),0) -> 0 | AM31: =IF(AM3<=Entrées!$C$34,AL31*(1+Entrées!$C$31),0) -> 0 | AN31: =IF(AN3<=Entrées!$C$34,AM31*(1+Entrées!$C$31),0) -> 0 | AO31: =IF(AO3<=Entrées!$C$34,AN31*(1+Entrées!$C$31),0) -> 0 | AP31: =IF(AP3<=Entrées!$C$34,AO31*(1+Entrées!$C$31),0) -> 0 | AQ31: =IF(AQ3<=Entrées!$C$34,AP31*(1+Entrées!$C$31),0) -> 0 | AR31: =IF(AR3<=Entrées!$C$34,AQ31*(1+Entrées!$C$31),0) -> 0 | AS31: =IF(AS3<=Entrées!$C$34,AR31*(1+Entrées!$C$31),0) -> 0 | AT31: =IF(AT3<=Entrées!$C$34,AS31*(1+Entrées!$C$31),0) -> 0 | AU31: =IF(AU3<=Entrées!$C$34,AT31*(1+Entrées!$C$31),0) -> 0 | AV31: =IF(AV3<=Entrées!$C$34,AU31*(1+Entrées!$C$31),0) -> 0 | AW31: =IF(AW3<=Entrées!$C$34,AV31*(1+Entrées!$C$31),0) -> 0 | AX31: =IF(AX3<=Entrées!$C$34,AW31*(1+Entrées!$C$31),0) -> 0 | AY31: =IF(AY3<=Entrées!$C$34,AX31*(1+Entrées!$C$31),0) -> 0 | AZ31: =IF(AZ3<=Entrées!$C$34,AY31*(1+Entrées!$C$31),0) -> 0 | BA31: =IF(BA3<=Entrées!$C$34,AZ31*(1+Entrées!$C$31),0) -> 0 | BB31: =IF(BB3<=Entrées!$C$34,BA31*(1+Entrées!$C$31),0) -> 0
B32: Coût variables d'exploitation (valeur nominale) | C32: DT | E32: =E30*E31 -> 2590 | F32: =F30*F31 -> 2797.2 | G32: 3020.976 | H32: 3262.65408 | I32: 3523.666406 | J32: 3805.559719 | K32: 4110.004496 | L32: 4438.804856 | M32: 4793.909245 | N32: 5177.421984 | O32: 5591.615743 | P32: 6038.945002 | Q32: 6522.060603 | R32: 7043.825451 | S32: 7607.331487 | T32: 8215.918006 | U32: 8873.191446 | V32: 9583.046762 | W32: 10349.6905 | X32: 11177.66574 | Y32: 12071.879 | Z32: 13037.62932 | AA32: 14080.63967 | AB32: 15207.09084 | AC32: 16423.65811 | AD32: 0 | AE32: 0 | AF32: 0 | AG32: 0 | AH32: 0 | AI32: 0 | AJ32: 0 | AK32: 0 | AL32: 0 | AM32: 0 | AN32: 0 | AO32: 0 | AP32: 0 | AQ32: 0 | AR32: 0 | AS32: 0 | AT32: 0 | AU32: 0 | AV32: 0 | AW32: 0 | AX32: 0 | AY32: 0 | AZ32: 0 | BA32: 0 | BB32: 0
B33: Coût d'exploitation total (nominale) | C33: DT | E33: =E32+E29 -> 3090 | F33: =F32+F29 -> 3332.2 | G33: 3593.426 | H33: 3875.17558 | I33: 4179.064411 | J33: 4506.835584 | K33: 4860.369672 | L33: 5241.695594 | M33: 5653.002335 | N33: 6096.65159 | O33: 6575.191422 | P33: 7091.370979 | Q33: 7648.156397 | R33: 8248.747951 | S33: 8896.598562 | T33: 9595.433776 | U33: 10349.27332 | V33: 11162.45437 | W33: 12039.65664 | X33: 12985.92951 | Y33: 14006.72123 | Z33: 15107.91051 | AA33: 16295.84054 | AB33: 17577.35577 | AC33: 18959.84159 | AD33: 0 | AE33: 0 | AF33: 0 | AG33: 0 | AH33: 0 | AI33: 0 | AJ33: 0 | AK33: 0 | AL33: 0 | AM33: 0 | AN33: 0 | AO33: 0 | AP33: 0 | AQ33: 0 | AR33: 0 | AS33: 0 | AT33: 0 | AU33: 0 | AV33: 0 | AW33: 0 | AX33: 0 | AY33: 0 | AZ33: 0 | BA33: 0 | BB33: 0
B35: Service de la dette
B36: Solde de trésorerie reporté | C36: DT | E36: =Entrées!C35 -> 10000 | F36: =E36-E39 -> 9372.546051 | G36: =F36-F39 -> 8682.346707 | H36: 7923.127429 | I36: 7087.986224 | J36: 6169.330897 | K36: 5158.810038 | L36: 4047.237093 | M36: 2824.506853 | N36: 1479.50359 | O36: 0 | P36: 0 | Q36: 0 | R36: 0 | S36: 0 | T36: 0 | U36: 0 | V36: 0 | W36: 0 | X36: 0 | Y36: 0 | Z36: 0 | AA36: 0 | AB36: 0 | AC36: 0 | AD36: 0 | AE36: 0 | AF36: 0 | AG36: 0 | AH36: 0 | AI36: 0 | AJ36: 0 | AK36: 0 | AL36: 0 | AM36: 0 | AN36: 0 | AO36: 0 | AP36: 0 | AQ36: 0 | AR36: 0 | AS36: 0 | AT36: 0 | AU36: 0 | AV36: 0 | AW36: 0 | AX36: 0 | AY36: 0 | AZ36: 0 | BA36: 0 | BB36: 0
B37: Service de la dette (annuités) | C37: DT | E37: =IFERROR(E36*Entrées!$C$37/(1-(1+Entrées!$C$37)^-(Entrées!$C$38-E3+1)),0) -> 1627.453949 | F37: =IFERROR(F36*Entrées!$C$37/(1-(1+Entrées!$C$37)^-(Entrées!$C$38-F3+1)),0) -> 1627.453949 | G37: =IFERROR(G36*Entrées!$C$37/(1-(1+Entrées!$C$37)^-(Entrées!$C$38-G3+1)),0) -> 1627.453949 | H37: =IFERROR(H36*Entrées!$C$37/(1-(1+Entrées!$C$37)^-(Entrées!$C$38-H3+1)),0) -> 1627.453949 | I37: =IFERROR(I36*Entrées!$C$37/(1-(1+Entrées!$C$37)^-(Entrées!$C$38-I3+1)),0) -> 1627.453949 | J37: =IFERROR(J36*Entrées!$C$37/(1-(1+Entrées!$C$37)^-(Entrées!$C$38-J3+1)),0) -> 1627.453949 | K37: =IFERROR(K36*Entrées!$C$37/(1-(1+Entrées!$C$37)^-(Entrées!$C$38-K3+1)),0) -> 1627.453949 | L37: =IFERROR(L36*Entrées!$C$37/(1-(1+Entrées!$C$37)^-(Entrées!$C$38-L3+1)),0) -> 1627.453949 | M37: =IFERROR(M36*Entrées!$C$37/(1-(1+Entrées!$C$37)^-(Entrées!$C$38-M3+1)),0) -> 1627.453949 | N37: =IFERROR(N36*Entrées!$C$37/(1-(1+Entrées!$C$37)^-(Entrées!$C$38-N3+1)),0) -> 1627.453949 | O37: =IFERROR(O36*Entrées!$C$37/(1-(1+Entrées!$C$37)^-(Entrées!$C$38-O3+1)),0) -> 0 | P37: =IFERROR(P36*Entrées!$C$37/(1-(1+Entrées!$C$37)^-(Entrées!$C$38-P3+1)),0) -> 0 | Q37: =IFERROR(Q36*Entrées!$C$37/(1-(1+Entrées!$C$37)^-(Entrées!$C$38-Q3+1)),0) -> 0 | R37: =IFERROR(R36*Entrées!$C$37/(1-(1+Entrées!$C$37)^-(Entrées!$C$38-R3+1)),0) -> 0 | S37: =IFERROR(S36*Entrées!$C$37/(1-(1+Entrées!$C$37)^-(Entrées!$C$38-S3+1)),0) -> 0 | T37: =IFERROR(T36*Entrées!$C$37/(1-(1+Entrées!$C$37)^-(Entrées!$C$38-T3+1)),0) -> 0 | U37: =IFERROR(U36*Entrées!$C$37/(1-(1+Entrées!$C$37)^-(Entrées!$C$38-U3+1)),0) -> 0 | V37: =IFERROR(V36*Entrées!$C$37/(1-(1+Entrées!$C$37)^-(Entrées!$C$38-V3+1)),0) -> 0 | W37: =IFERROR(W36*Entrées!$C$37/(1-(1+Entrées!$C$37)^-(Entrées!$C$38-W3+1)),0) -> 0 | X37: =IFERROR(X36*Entrées!$C$37/(1-(1+Entrées!$C$37)^-(Entrées!$C$38-X3+1)),0) -> 0 | Y37: =IFERROR(Y36*Entrées!$C$37/(1-(1+Entrées!$C$37)^-(Entrées!$C$38-Y3+1)),0) -> 0 | Z37: =IFERROR(Z36*Entrées!$C$37/(1-(1+Entrées!$C$37)^-(Entrées!$C$38-Z3+1)),0) -> 0 | AA37: =IFERROR(AA36*Entrées!$C$37/(1-(1+Entrées!$C$37)^-(Entrées!$C$38-AA3+1)),0) -> 0 | AB37: =IFERROR(AB36*Entrées!$C$37/(1-(1+Entrées!$C$37)^-(Entrées!$C$38-AB3+1)),0) -> 0 | AC37: =IFERROR(AC36*Entrées!$C$37/(1-(1+Entrées!$C$37)^-(Entrées!$C$38-AC3+1)),0) -> 0 | AD37: =IFERROR(AD36*Entrées!$C$37/(1-(1+Entrées!$C$37)^-(Entrées!$C$38-AD3+1)),0) -> 0 | AE37: =IFERROR(AE36*Entrées!$C$37/(1-(1+Entrées!$C$37)^-(Entrées!$C$38-AE3+1)),0) -> 0 | AF37: =IFERROR(AF36*Entrées!$C$37/(1-(1+Entrées!$C$37)^-(Entrées!$C$38-AF3+1)),0) -> 0 | AG37: =IFERROR(AG36*Entrées!$C$37/(1-(1+Entrées!$C$37)^-(Entrées!$C$38-AG3+1)),0) -> 0 | AH37: =IFERROR(AH36*Entrées!$C$37/(1-(1+Entrées!$C$37)^-(Entrées!$C$38-AH3+1)),0) -> 0 | AI37: =IFERROR(AI36*Entrées!$C$37/(1-(1+Entrées!$C$37)^-(Entrées!$C$38-AI3+1)),0) -> 0 | AJ37: =IFERROR(AJ36*Entrées!$C$37/(1-(1+Entrées!$C$37)^-(Entrées!$C$38-AJ3+1)),0) -> 0 | AK37: =IFERROR(AK36*Entrées!$C$37/(1-(1+Entrées!$C$37)^-(Entrées!$C$38-AK3+1)),0) -> 0 | AL37: =IFERROR(AL36*Entrées!$C$37/(1-(1+Entrées!$C$37)^-(Entrées!$C$38-AL3+1)),0) -> 0 | AM37: =IFERROR(AM36*Entrées!$C$37/(1-(1+Entrées!$C$37)^-(Entrées!$C$38-AM3+1)),0) -> 0 | AN37: =IFERROR(AN36*Entrées!$C$37/(1-(1+Entrées!$C$37)^-(Entrées!$C$38-AN3+1)),0) -> 0 | AO37: =IFERROR(AO36*Entrées!$C$37/(1-(1+Entrées!$C$37)^-(Entrées!$C$38-AO3+1)),0) -> 0 | AP37: =IFERROR(AP36*Entrées!$C$37/(1-(1+Entrées!$C$37)^-(Entrées!$C$38-AP3+1)),0) -> 0 | AQ37: =IFERROR(AQ36*Entrées!$C$37/(1-(1+Entrées!$C$37)^-(Entrées!$C$38-AQ3+1)),0) -> 0 | AR37: =IFERROR(AR36*Entrées!$C$37/(1-(1+Entrées!$C$37)^-(Entrées!$C$38-AR3+1)),0) -> 0 | AS37: =IFERROR(AS36*Entrées!$C$37/(1-(1+Entrées!$C$37)^-(Entrées!$C$38-AS3+1)),0) -> 0 | AT37: =IFERROR(AT36*Entrées!$C$37/(1-(1+Entrées!$C$37)^-(Entrées!$C$38-AT3+1)),0) -> 0 | AU37: =IFERROR(AU36*Entrées!$C$37/(1-(1+Entrées!$C$37)^-(Entrées!$C$38-AU3+1)),0) -> 0 | AV37: =IFERROR(AV36*Entrées!$C$37/(1-(1+Entrées!$C$37)^-(Entrées!$C$38-AV3+1)),0) -> 0 | AW37: =IFERROR(AW36*Entrées!$C$37/(1-(1+Entrées!$C$37)^-(Entrées!$C$38-AW3+1)),0) -> 0 | AX37: =IFERROR(AX36*Entrées!$C$37/(1-(1+Entrées!$C$37)^-(Entrées!$C$38-AX3+1)),0) -> 0 | AY37: =IFERROR(AY36*Entrées!$C$37/(1-(1+Entrées!$C$37)^-(Entrées!$C$38-AY3+1)),0) -> 0 | AZ37: =IFERROR(AZ36*Entrées!$C$37/(1-(1+Entrées!$C$37)^-(Entrées!$C$38-AZ3+1)),0) -> 0 | BA37: =IFERROR(BA36*Entrées!$C$37/(1-(1+Entrées!$C$37)^-(Entrées!$C$38-BA3+1)),0) -> 0 | BB37: =IFERROR(BB36*Entrées!$C$37/(1-(1+Entrées!$C$37)^-(Entrées!$C$38-BB3+1)),0) -> 0
B38: Interet | C38: DT | E38: =Entrées!$C$37*E36 -> 1000 | F38: =Entrées!$C$37*F36 -> 937.2546051 | G38: =Entrées!$C$37*G36 -> 868.2346707 | H38: =Entrées!$C$37*H36 -> 792.3127429 | I38: =Entrées!$C$37*I36 -> 708.7986224 | J38: =Entrées!$C$37*J36 -> 616.9330897 | K38: =Entrées!$C$37*K36 -> 515.8810038 | L38: =Entrées!$C$37*L36 -> 404.7237093 | M38: =Entrées!$C$37*M36 -> 282.4506853 | N38: =Entrées!$C$37*N36 -> 147.950359 | O38: =Entrées!$C$37*O36 -> 0 | P38: =Entrées!$C$37*P36 -> 0 | Q38: =Entrées!$C$37*Q36 -> 0 | R38: =Entrées!$C$37*R36 -> 0 | S38: =Entrées!$C$37*S36 -> 0 | T38: =Entrées!$C$37*T36 -> 0 | U38: =Entrées!$C$37*U36 -> 0 | V38: =Entrées!$C$37*V36 -> 0 | W38: =Entrées!$C$37*W36 -> 0 | X38: =Entrées!$C$37*X36 -> 0 | Y38: =Entrées!$C$37*Y36 -> 0 | Z38: =Entrées!$C$37*Z36 -> 0 | AA38: =Entrées!$C$37*AA36 -> 0 | AB38: =Entrées!$C$37*AB36 -> 0 | AC38: =Entrées!$C$37*AC36 -> 0 | AD38: =Entrées!$C$37*AD36 -> 0 | AE38: =Entrées!$C$37*AE36 -> 0 | AF38: =Entrées!$C$37*AF36 -> 0 | AG38: =Entrées!$C$37*AG36 -> 0 | AH38: =Entrées!$C$37*AH36 -> 0 | AI38: =Entrées!$C$37*AI36 -> 0 | AJ38: =Entrées!$C$37*AJ36 -> 0 | AK38: =Entrées!$C$37*AK36 -> 0 | AL38: =Entrées!$C$37*AL36 -> 0 | AM38: =Entrées!$C$37*AM36 -> 0 | AN38: =Entrées!$C$37*AN36 -> 0 | AO38: =Entrées!$C$37*AO36 -> 0 | AP38: =Entrées!$C$37*AP36 -> 0 | AQ38: =Entrées!$C$37*AQ36 -> 0 | AR38: =Entrées!$C$37*AR36 -> 0 | AS38: =Entrées!$C$37*AS36 -> 0 | AT38: =Entrées!$C$37*AT36 -> 0 | AU38: =Entrées!$C$37*AU36 -> 0 | AV38: =Entrées!$C$37*AV36 -> 0 | AW38: =Entrées!$C$37*AW36 -> 0 | AX38: =Entrées!$C$37*AX36 -> 0 | AY38: =Entrées!$C$37*AY36 -> 0 | AZ38: =Entrées!$C$37*AZ36 -> 0 | BA38: =Entrées!$C$37*BA36 -> 0 | BB38: =Entrées!$C$37*BB36 -> 0
B39: Montant du principal | C39: DT | E39: =E37-E38 -> 627.4539488 | F39: =F37-F38 -> 690.1993437 | G39: 759.2192781 | H39: 835.1412059 | I39: 918.6553265 | J39: 1010.520859 | K39: 1111.572945 | L39: 1222.73024 | M39: 1345.003263 | N39: 1479.50359 | O39: 0 | P39: 0 | Q39: 0 | R39: 0 | S39: 0 | T39: 0 | U39: 0 | V39: 0 | W39: 0 | X39: 0 | Y39: 0 | Z39: 0 | AA39: 0 | AB39: 0 | AC39: 0 | AD39: 0 | AE39: 0 | AF39: 0 | AG39: 0 | AH39: 0 | AI39: 0 | AJ39: 0 | AK39: 0 | AL39: 0 | AM39: 0 | AN39: 0 | AO39: 0 | AP39: 0 | AQ39: 0 | AR39: 0 | AS39: 0 | AT39: 0 | AU39: 0 | AV39: 0 | AW39: 0 | AX39: 0 | AY39: 0 | AZ39: 0 | BA39: 0 | BB39: 0
B41: Capitaux propres initials | C41: DT | D41: =Entrées!C27-Entrées!C35 -> 40000
B43: Flux de trésorerie net | C43: DT | E43: =-(E37+E33)-D41 -> -44717.45395 | F43: =-(F37+F33) -> -4959.653949 | G43: =-(G37+G33) -> -5220.879949 | H43: -5502.629529 | I43: -5806.51836 | J43: -6134.289533 | K43: -6487.823621 | L43: -6869.149543 | M43: -7280.456283 | N43: -7724.105539 | O43: -6575.191422 | P43: -7091.370979 | Q43: -7648.156397 | R43: -8248.747951 | S43: -8896.598562 | T43: -9595.433776 | U43: -10349.27332 | V43: -11162.45437 | W43: -12039.65664 | X43: -12985.92951 | Y43: -14006.72123 | Z43: -15107.91051 | AA43: -16295.84054 | AB43: -17577.35577 | AC43: -18959.84159 | AD43: 0 | AE43: 0 | AF43: 0 | AG43: 0 | AH43: 0 | AI43: 0 | AJ43: 0 | AK43: 0 | AL43: 0 | AM43: 0 | AN43: 0 | AO43: 0 | AP43: 0 | AQ43: 0 | AR43: 0 | AS43: 0 | AT43: 0 | AU43: 0 | AV43: 0 | AW43: 0 | AX43: 0 | AY43: 0 | AZ43: 0 | BA43: 0 | BB43: 0
B45: Coût totale actualisé | C45: DT | D45: =-XNPV(Entrées!C59,Calculs!E43:BB43,Calculs!$E$2:$BB$2) -> 112505.2008
B46: Coût totale actualisé par année de la vie du projet | C46: DT | D46: =D45/Entrées!C34 -> 4500.208032
A48: Flux de trésorerie du système de pompage et d'irrigation raccordé au réseau STEG (SPIRR)
B50: Coût d'exploitation
B51: Coût fixes d'exploitation (valeur réele) | C51: DT | E51: =Entrées!C50*Entrées!C42 -> 500 | F51: =IF(F3<=Entrées!$C$51,E51,0) -> 500 | G51: =IF(G3<=Entrées!$C$51,F51,0) -> 500 | H51: =IF(H3<=Entrées!$C$51,G51,0) -> 500 | I51: =IF(I3<=Entrées!$C$51,H51,0) -> 500 | J51: =IF(J3<=Entrées!$C$51,I51,0) -> 500 | K51: =IF(K3<=Entrées!$C$51,J51,0) -> 500 | L51: =IF(L3<=Entrées!$C$51,K51,0) -> 500 | M51: =IF(M3<=Entrées!$C$51,L51,0) -> 500 | N51: =IF(N3<=Entrées!$C$51,M51,0) -> 500 | O51: =IF(O3<=Entrées!$C$51,N51,0) -> 500 | P51: =IF(P3<=Entrées!$C$51,O51,0) -> 500 | Q51: =IF(Q3<=Entrées!$C$51,P51,0) -> 500 | R51: =IF(R3<=Entrées!$C$51,Q51,0) -> 500 | S51: =IF(S3<=Entrées!$C$51,R51,0) -> 500 | T51: =IF(T3<=Entrées!$C$51,S51,0) -> 500 | U51: =IF(U3<=Entrées!$C$51,T51,0) -> 500 | V51: =IF(V3<=Entrées!$C$51,U51,0) -> 500 | W51: =IF(W3<=Entrées!$C$51,V51,0) -> 500 | X51: =IF(X3<=Entrées!$C$51,W51,0) -> 500 | Y51: =IF(Y3<=Entrées!$C$51,X51,0) -> 500 | Z51: =IF(Z3<=Entrées!$C$51,Y51,0) -> 500 | AA51: =IF(AA3<=Entrées!$C$51,Z51,0) -> 500 | AB51: =IF(AB3<=Entrées!$C$51,AA51,0) -> 500 | AC51: =IF(AC3<=Entrées!$C$51,AB51,0) -> 500 | AD51: =IF(AD3<=Entrées!$C$51,AC51,0) -> 0 | AE51: =IF(AE3<=Entrées!$C$51,AD51,0) -> 0 | AF51: =IF(AF3<=Entrées!$C$51,AE51,0) -> 0 | AG51: =IF(AG3<=Entrées!$C$51,AF51,0) -> 0 | AH51: =IF(AH3<=Entrées!$C$51,AG51,0) -> 0 | AI51: =IF(AI3<=Entrées!$C$51,AH51,0) -> 0 | AJ51: =IF(AJ3<=Entrées!$C$51,AI51,0) -> 0 | AK51: =IF(AK3<=Entrées!$C$51,AJ51,0) -> 0 | AL51: =IF(AL3<=Entrées!$C$51,AK51,0) -> 0 | AM51: =IF(AM3<=Entrées!$C$51,AL51,0) -> 0 | AN51: =IF(AN3<=Entrées!$C$51,AM51,0) -> 0 | AO51: =IF(AO3<=Entrées!$C$51,AN51,0) -> 0 | AP51: =IF(AP3<=Entrées!$C$51,AO51,0) -> 0 | AQ51: =IF(AQ3<=Entrées!$C$51,AP51,0) -> 0 | AR51: =IF(AR3<=Entrées!$C$51,AQ51,0) -> 0 | AS51: =IF(AS3<=Entrées!$C$51,AR51,0) -> 0 | AT51: =IF(AT3<=Entrées!$C$51,AS51,0) -> 0 | AU51: =IF(AU3<=Entrées!$C$51,AT51,0) -> 0 | AV51: =IF(AV3<=Entrées!$C$51,AU51,0) -> 0 | AW51: =IF(AW3<=Entrées!$C$51,AV51,0) -> 0 | AX51: =IF(AX3<=Entrées!$C$51,AW51,0) -> 0 | AY51: =IF(AY3<=Entrées!$C$51,AX51,0) -> 0 | AZ51: =IF(AZ3<=Entrées!$C$51,AY51,0) -> 0 | BA51: =IF(BA3<=Entrées!$C$51,AZ51,0) -> 0 | BB51: =IF(BB3<=Entrées!$C$51,BA51,0) -> 0
B52: Coût fixes d'exploitation (valeur nominale) | C52: DT | E52: =E51*E4 -> 500 | F52: =F51*F4 -> 535 | G52: =G51*G4 -> 572.45 | H52: 612.5215 | I52: 655.398005 | J52: 701.2758654 | K52: 750.3651759 | L52: 802.8907382 | M52: 859.0930899 | N52: 919.2296062 | O52: 983.5756786 | P52: 1052.425976 | Q52: 1126.095794 | R52: 1204.9225 | S52: 1289.267075 | T52: 1379.51577 | U52: 1476.081874 | V52: 1579.407605 | W52: 1689.966138 | X52: 1808.263768 | Y52: 1934.842231 | Z52: 2070.281187 | AA52: 2215.200871 | AB52: 2370.264931 | AC52: 2536.183477 | AD52: 0 | AE52: 0 | AF52: 0 | AG52: 0 | AH52: 0 | AI52: 0 | AJ52: 0 | AK52: 0 | AL52: 0 | AM52: 0 | AN52: 0 | AO52: 0 | AP52: 0 | AQ52: 0 | AR52: 0 | AS52: 0 | AT52: 0 | AU52: 0 | AV52: 0 | AW52: 0 | AX52: 0 | AY52: 0 | AZ52: 0 | BA52: 0 | BB52: 0
B53: Consommation électricité annuelle | C53: kWh | E53: =Entrées!C46 -> 50000 | F53: =IF(F3<=Entrées!$C$51,E53,0) -> 50000 | G53: =IF(G3<=Entrées!$C$51,F53,0) -> 50000 | H53: =IF(H3<=Entrées!$C$51,G53,0) -> 50000 | I53: =IF(I3<=Entrées!$C$51,H53,0) -> 50000 | J53: =IF(J3<=Entrées!$C$51,I53,0) -> 50000 | K53: =IF(K3<=Entrées!$C$51,J53,0) -> 50000 | L53: =IF(L3<=Entrées!$C$51,K53,0) -> 50000 | M53: =IF(M3<=Entrées!$C$51,L53,0) -> 50000 | N53: =IF(N3<=Entrées!$C$51,M53,0) -> 50000 | O53: =IF(O3<=Entrées!$C$51,N53,0) -> 50000 | P53: =IF(P3<=Entrées!$C$51,O53,0) -> 50000 | Q53: =IF(Q3<=Entrées!$C$51,P53,0) -> 50000 | R53: =IF(R3<=Entrées!$C$51,Q53,0) -> 50000 | S53: =IF(S3<=Entrées!$C$51,R53,0) -> 50000 | T53: =IF(T3<=Entrées!$C$51,S53,0) -> 50000 | U53: =IF(U3<=Entrées!$C$51,T53,0) -> 50000 | V53: =IF(V3<=Entrées!$C$51,U53,0) -> 50000 | W53: =IF(W3<=Entrées!$C$51,V53,0) -> 50000 | X53: =IF(X3<=Entrées!$C$51,W53,0) -> 50000 | Y53: =IF(Y3<=Entrées!$C$51,X53,0) -> 50000 | Z53: =IF(Z3<=Entrées!$C$51,Y53,0) -> 50000 | AA53: =IF(AA3<=Entrées!$C$51,Z53,0) -> 50000 | AB53: =IF(AB3<=Entrées!$C$51,AA53,0) -> 50000 | AC53: =IF(AC3<=Entrées!$C$51,AB53,0) -> 50000 | AD53: =IF(AD3<=Entrées!$C$51,AC53,0) -> 0 | AE53: =IF(AE3<=Entrées!$C$51,AD53,0) -> 0 | AF53: =IF(AF3<=Entrées!$C$51,AE53,0) -> 0 | AG53: =IF(AG3<=Entrées!$C$51,AF53,0) -> 0 | AH53: =IF(AH3<=Entrées!$C$51,AG53,0) -> 0 | AI53: =IF(AI3<=Entrées!$C$51,AH53,0) -> 0 | AJ53: =IF(AJ3<=Entrées!$C$51,AI53,0) -> 0 | AK53: =IF(AK3<=Entrées!$C$51,AJ53,0) -> 0 | AL53: =IF(AL3<=Entrées!$C$51,AK53,0) -> 0 | AM53: =IF(AM3<=Entrées!$C$51,AL53,0) -> 0 | AN53: =IF(AN3<=Entrées!$C$51,AM53,0) -> 0 | AO53: =IF(AO3<=Entrées!$C$51,AN53,0) -> 0 | AP53: =IF(AP3<=Entrées!$C$51,AO53,0) -> 0 | AQ53: =IF(AQ3<=Entrées!$C$51,AP53,0) -> 0 | AR53: =IF(AR3<=Entrées!$C$51,AQ53,0) -> 0 | AS53: =IF(AS3<=Entrées!$C$51,AR53,0) -> 0 | AT53: =IF(AT3<=Entrées!$C$51,AS53,0) -> 0 | AU53: =IF(AU3<=Entrées!$C$51,AT53,0) -> 0 | AV53: =IF(AV3<=Entrées!$C$51,AU53,0) -> 0 | AW53: =IF(AW3<=Entrées!$C$51,AV53,0) -> 0 | AX53: =IF(AX3<=Entrées!$C$51,AW53,0) -> 0 | AY53: =IF(AY3<=Entrées!$C$51,AX53,0) -> 0 | AZ53: =IF(AZ3<=Entrées!$C$51,AY53,0) -> 0 | BA53: =IF(BA3<=Entrées!$C$51,AZ53,0) -> 0 | BB53: =IF(BB3<=Entrées!$C$51,BA53,0) -> 0
B54: Prix moyen d'électricité (nominale) | C54: DT/kWh | E54: =Entrées!C47 -> 0.14 | F54: =IF(F3<=Entrées!$C$51,E54*(1+Entrées!$C$48),0) -> 0.1512 | G54: =IF(G3<=Entrées!$C$51,F54*(1+Entrées!$C$48),0) -> 0.163296 | H54: =IF(H3<=Entrées!$C$51,G54*(1+Entrées!$C$48),0) -> 0.17635968 | I54: =IF(I3<=Entrées!$C$51,H54*(1+Entrées!$C$48),0) -> 0.1904684544 | J54: =IF(J3<=Entrées!$C$51,I54*(1+Entrées!$C$48),0) -> 0.2057059308 | K54: =IF(K3<=Entrées!$C$51,J54*(1+Entrées!$C$48),0) -> 0.2221624052 | L54: =IF(L3<=Entrées!$C$51,K54*(1+Entrées!$C$48),0) -> 0.2399353976 | M54: =IF(M3<=Entrées!$C$51,L54*(1+Entrées!$C$48),0) -> 0.2591302294 | N54: =IF(N3<=Entrées!$C$51,M54*(1+Entrées!$C$48),0) -> 0.2798606478 | O54: =IF(O3<=Entrées!$C$51,N54*(1+Entrées!$C$48),0) -> 0.3022494996 | P54: =IF(P3<=Entrées!$C$51,O54*(1+Entrées!$C$48),0) -> 0.3264294596 | Q54: =IF(Q3<=Entrées!$C$51,P54*(1+Entrées!$C$48),0) -> 0.3525438164 | R54: =IF(R3<=Entrées!$C$51,Q54*(1+Entrées!$C$48),0) -> 0.3807473217 | S54: =IF(S3<=Entrées!$C$51,R54*(1+Entrées!$C$48),0) -> 0.4112071074 | T54: =IF(T3<=Entrées!$C$51,S54*(1+Entrées!$C$48),0) -> 0.444103676 | U54: =IF(U3<=Entrées!$C$51,T54*(1+Entrées!$C$48),0) -> 0.4796319701 | V54: =IF(V3<=Entrées!$C$51,U54*(1+Entrées!$C$48),0) -> 0.5180025277 | W54: =IF(W3<=Entrées!$C$51,V54*(1+Entrées!$C$48),0) -> 0.5594427299 | X54: =IF(X3<=Entrées!$C$51,W54*(1+Entrées!$C$48),0) -> 0.6041981483 | Y54: =IF(Y3<=Entrées!$C$51,X54*(1+Entrées!$C$48),0) -> 0.6525340001 | Z54: =IF(Z3<=Entrées!$C$51,Y54*(1+Entrées!$C$48),0) -> 0.7047367202 | AA54: =IF(AA3<=Entrées!$C$51,Z54*(1+Entrées!$C$48),0) -> 0.7611156578 | AB54: =IF(AB3<=Entrées!$C$51,AA54*(1+Entrées!$C$48),0) -> 0.8220049104 | AC54: =IF(AC3<=Entrées!$C$51,AB54*(1+Entrées!$C$48),0) -> 0.8877653032 | AD54: =IF(AD3<=Entrées!$C$51,AC54*(1+Entrées!$C$48),0) -> 0 | AE54: =IF(AE3<=Entrées!$C$51,AD54*(1+Entrées!$C$48),0) -> 0 | AF54: =IF(AF3<=Entrées!$C$51,AE54*(1+Entrées!$C$48),0) -> 0 | AG54: =IF(AG3<=Entrées!$C$51,AF54*(1+Entrées!$C$48),0) -> 0 | AH54: =IF(AH3<=Entrées!$C$51,AG54*(1+Entrées!$C$48),0) -> 0 | AI54: =IF(AI3<=Entrées!$C$51,AH54*(1+Entrées!$C$48),0) -> 0 | AJ54: =IF(AJ3<=Entrées!$C$51,AI54*(1+Entrées!$C$48),0) -> 0 | AK54: =IF(AK3<=Entrées!$C$51,AJ54*(1+Entrées!$C$48),0) -> 0 | AL54: =IF(AL3<=Entrées!$C$51,AK54*(1+Entrées!$C$48),0) -> 0 | AM54: =IF(AM3<=Entrées!$C$51,AL54*(1+Entrées!$C$48),0) -> 0 | AN54: =IF(AN3<=Entrées!$C$51,AM54*(1+Entrées!$C$48),0) -> 0 | AO54: =IF(AO3<=Entrées!$C$51,AN54*(1+Entrées!$C$48),0) -> 0 | AP54: =IF(AP3<=Entrées!$C$51,AO54*(1+Entrées!$C$48),0) -> 0 | AQ54: =IF(AQ3<=Entrées!$C$51,AP54*(1+Entrées!$C$48),0) -> 0 | AR54: =IF(AR3<=Entrées!$C$51,AQ54*(1+Entrées!$C$48),0) -> 0 | AS54: =IF(AS3<=Entrées!$C$51,AR54*(1+Entrées!$C$48),0) -> 0 | AT54: =IF(AT3<=Entrées!$C$51,AS54*(1+Entrées!$C$48),0) -> 0 | AU54: =IF(AU3<=Entrées!$C$51,AT54*(1+Entrées!$C$48),0) -> 0 | AV54: =IF(AV3<=Entrées!$C$51,AU54*(1+Entrées!$C$48),0) -> 0 | AW54: =IF(AW3<=Entrées!$C$51,AV54*(1+Entrées!$C$48),0) -> 0 | AX54: =IF(AX3<=Entrées!$C$51,AW54*(1+Entrées!$C$48),0) -> 0 | AY54: =IF(AY3<=Entrées!$C$51,AX54*(1+Entrées!$C$48),0) -> 0 | AZ54: =IF(AZ3<=Entrées!$C$51,AY54*(1+Entrées!$C$48),0) -> 0 | BA54: =IF(BA3<=Entrées!$C$51,AZ54*(1+Entrées!$C$48),0) -> 0 | BB54: =IF(BB3<=Entrées!$C$51,BA54*(1+Entrées!$C$48),0) -> 0
B55: Coût variables d'exploitation (valeur nominale) | C55: DT | E55: =E53*E54 -> 7000 | F55: =F53*F54 -> 7560 | G55: =G53*G54 -> 8164.8 | H55: 8817.984 | I55: 9523.42272 | J55: 10285.29654 | K55: 11108.12026 | L55: 11996.76988 | M55: 12956.51147 | N55: 13993.03239 | O55: 15112.47498 | P55: 16321.47298 | Q55: 17627.19082 | R55: 19037.36608 | S55: 20560.35537 | T55: 22205.1838 | U55: 23981.5985 | V55: 25900.12638 | W55: 27972.13649 | X55: 30209.90741 | Y55: 32626.70001 | Z55: 35236.83601 | AA55: 38055.78289 | AB55: 41100.24552 | AC55: 44388.26516 | AD55: 0 | AE55: 0 | AF55: 0 | AG55: 0 | AH55: 0 | AI55: 0 | AJ55: 0 | AK55: 0 | AL55: 0 | AM55: 0 | AN55: 0 | AO55: 0 | AP55: 0 | AQ55: 0 | AR55: 0 | AS55: 0 | AT55: 0 | AU55: 0 | AV55: 0 | AW55: 0 | AX55: 0 | AY55: 0 | AZ55: 0 | BA55: 0 | BB55: 0
B56: Coût d'exploitation total (nominale) | C56: DT | E56: =E55+E52 -> 7500 | F56: =F55+F52 -> 8095 | G56: =G55+G52 -> 8737.25 | H56: 9430.5055 | I56: 10178.82073 | J56: 10986.5724 | K56: 11858.48544 | L56: 12799.66062 | M56: 13815.60456 | N56: 14912.262 | O56: 16096.05066 | P56: 17373.89896 | Q56: 18753.28661 | R56: 20242.28858 | S56: 21849.62244 | T56: 23584.69957 | U56: 25457.68038 | V56: 27479.53399 | W56: 29662.10263 | X56: 32018.17118 | Y56: 34561.54224 | Z56: 37307.11719 | AA56: 40270.98376 | AB56: 43470.51045 | AC56: 46924.44864 | AD56: 0 | AE56: 0 | AF56: 0 | AG56: 0 | AH56: 0 | AI56: 0 | AJ56: 0 | AK56: 0 | AL56: 0 | AM56: 0 | AN56: 0 | AO56: 0 | AP56: 0 | AQ56: 0 | AR56: 0 | AS56: 0 | AT56: 0 | AU56: 0 | AV56: 0 | AW56: 0 | AX56: 0 | AY56: 0 | AZ56: 0 | BA56: 0 | BB56: 0
B58: Service de la dette
B59: Solde de trésorerie reporté | C59: DT | E59: =Entrées!C52 -> 10000 | F59: =E59-E62 -> 9372.546051 | G59: =F59-F62 -> 8682.346707 | H59: 7923.127429 | I59: 7087.986224 | J59: 6169.330897 | K59: 5158.810038 | L59: 4047.237093 | M59: 2824.506853 | N59: 1479.50359 | O59: 0 | P59: 0 | Q59: 0 | R59: 0 | S59: 0 | T59: 0 | U59: 0 | V59: 0 | W59: 0 | X59: 0 | Y59: 0 | Z59: 0 | AA59: 0 | AB59: 0 | AC59: 0 | AD59: 0 | AE59: 0 | AF59: 0 | AG59: 0 | AH59: 0 | AI59: 0 | AJ59: 0 | AK59: 0 | AL59: 0 | AM59: 0 | AN59: 0 | AO59: 0 | AP59: 0 | AQ59: 0 | AR59: 0 | AS59: 0 | AT59: 0 | AU59: 0 | AV59: 0 | AW59: 0 | AX59: 0 | AY59: 0 | AZ59: 0 | BA59: 0 | BB59: 0
B60: Service de la dette (annuités) | C60: DT | E60: =IFERROR(E59*Entrées!$C$54/(1-(1+Entrées!$C$54)^-(Entrées!$C$55-E3+1)),0) -> 1627.453949 | F60: =IFERROR(F59*Entrées!$C$54/(1-(1+Entrées!$C$54)^-(Entrées!$C$55-F3+1)),0) -> 1627.453949 | G60: =IFERROR(G59*Entrées!$C$54/(1-(1+Entrées!$C$54)^-(Entrées!$C$55-G3+1)),0) -> 1627.453949 | H60: =IFERROR(H59*Entrées!$C$54/(1-(1+Entrées!$C$54)^-(Entrées!$C$55-H3+1)),0) -> 1627.453949 | I60: =IFERROR(I59*Entrées!$C$54/(1-(1+Entrées!$C$54)^-(Entrées!$C$55-I3+1)),0) -> 1627.453949 | J60: =IFERROR(J59*Entrées!$C$54/(1-(1+Entrées!$C$54)^-(Entrées!$C$55-J3+1)),0) -> 1627.453949 | K60: =IFERROR(K59*Entrées!$C$54/(1-(1+Entrées!$C$54)^-(Entrées!$C$55-K3+1)),0) -> 1627.453949 | L60: =IFERROR(L59*Entrées!$C$54/(1-(1+Entrées!$C$54)^-(Entrées!$C$55-L3+1)),0) -> 1627.453949 | M60: =IFERROR(M59*Entrées!$C$54/(1-(1+Entrées!$C$54)^-(Entrées!$C$55-M3+1)),0) -> 1627.453949 | N60: =IFERROR(N59*Entrées!$C$54/(1-(1+Entrées!$C$54)^-(Entrées!$C$55-N3+1)),0) -> 1627.453949 | O60: =IFERROR(O59*Entrées!$C$54/(1-(1+Entrées!$C$54)^-(Entrées!$C$55-O3+1)),0) -> 0 | P60: =IFERROR(P59*Entrées!$C$54/(1-(1+Entrées!$C$54)^-(Entrées!$C$55-P3+1)),0) -> 0 | Q60: =IFERROR(Q59*Entrées!$C$54/(1-(1+Entrées!$C$54)^-(Entrées!$C$55-Q3+1)),0) -> 0 | R60: =IFERROR(R59*Entrées!$C$54/(1-(1+Entrées!$C$54)^-(Entrées!$C$55-R3+1)),0) -> 0 | S60: =IFERROR(S59*Entrées!$C$54/(1-(1+Entrées!$C$54)^-(Entrées!$C$55-S3+1)),0) -> 0 | T60: =IFERROR(T59*Entrées!$C$54/(1-(1+Entrées!$C$54)^-(Entrées!$C$55-T3+1)),0) -> 0 | U60: =IFERROR(U59*Entrées!$C$54/(1-(1+Entrées!$C$54)^-(Entrées!$C$55-U3+1)),0) -> 0 | V60: =IFERROR(V59*Entrées!$C$54/(1-(1+Entrées!$C$54)^-(Entrées!$C$55-V3+1)),0) -> 0 | W60: =IFERROR(W59*Entrées!$C$54/(1-(1+Entrées!$C$54)^-(Entrées!$C$55-W3+1)),0) -> 0 | X60: =IFERROR(X59*Entrées!$C$54/(1-(1+Entrées!$C$54)^-(Entrées!$C$55-X3+1)),0) -> 0 | Y60: =IFERROR(Y59*Entrées!$C$54/(1-(1+Entrées!$C$54)^-(Entrées!$C$55-Y3+1)),0) -> 0 | Z60: =IFERROR(Z59*Entrées!$C$54/(1-(1+Entrées!$C$54)^-(Entrées!$C$55-Z3+1)),0) -> 0 | AA60: =IFERROR(AA59*Entrées!$C$54/(1-(1+Entrées!$C$54)^-(Entrées!$C$55-AA3+1)),0) -> 0 | AB60: =IFERROR(AB59*Entrées!$C$54/(1-(1+Entrées!$C$54)^-(Entrées!$C$55-AB3+1)),0) -> 0 | AC60: =IFERROR(AC59*Entrées!$C$54/(1-(1+Entrées!$C$54)^-(Entrées!$C$55-AC3+1)),0) -> 0 | AD60: =IFERROR(AD59*Entrées!$C$54/(1-(1+Entrées!$C$54)^-(Entrées!$C$55-AD3+1)),0) -> 0 | AE60: =IFERROR(AE59*Entrées!$C$54/(1-(1+Entrées!$C$54)^-(Entrées!$C$55-AE3+1)),0) -> 0 | AF60: =IFERROR(AF59*Entrées!$C$54/(1-(1+Entrées!$C$54)^-(Entrées!$C$55-AF3+1)),0) -> 0 | AG60: =IFERROR(AG59*Entrées!$C$54/(1-(1+Entrées!$C$54)^-(Entrées!$C$55-AG3+1)),0) -> 0 | AH60: =IFERROR(AH59*Entrées!$C$54/(1-(1+Entrées!$C$54)^-(Entrées!$C$55-AH3+1)),0) -> 0 | AI60: =IFERROR(AI59*Entrées!$C$54/(1-(1+Entrées!$C$54)^-(Entrées!$C$55-AI3+1)),0) -> 0 | AJ60: =IFERROR(AJ59*Entrées!$C$54/(1-(1+Entrées!$C$54)^-(Entrées!$C$55-AJ3+1)),0) -> 0 | AK60: =IFERROR(AK59*Entrées!$C$54/(1-(1+Entrées!$C$54)^-(Entrées!$C$55-AK3+1)),0) -> 0 | AL60: =IFERROR(AL59*Entrées!$C$54/(1-(1+Entrées!$C$54)^-(Entrées!$C$55-AL3+1)),0) -> 0 | AM60: =IFERROR(AM59*Entrées!$C$54/(1-(1+Entrées!$C$54)^-(Entrées!$C$55-AM3+1)),0) -> 0 | AN60: =IFERROR(AN59*Entrées!$C$54/(1-(1+Entrées!$C$54)^-(Entrées!$C$55-AN3+1)),0) -> 0 | AO60: =IFERROR(AO59*Entrées!$C$54/(1-(1+Entrées!$C$54)^-(Entrées!$C$55-AO3+1)),0) -> 0 | AP60: =IFERROR(AP59*Entrées!$C$54/(1-(1+Entrées!$C$54)^-(Entrées!$C$55-AP3+1)),0) -> 0 | AQ60: =IFERROR(AQ59*Entrées!$C$54/(1-(1+Entrées!$C$54)^-(Entrées!$C$55-AQ3+1)),0) -> 0 | AR60: =IFERROR(AR59*Entrées!$C$54/(1-(1+Entrées!$C$54)^-(Entrées!$C$55-AR3+1)),0) -> 0 | AS60: =IFERROR(AS59*Entrées!$C$54/(1-(1+Entrées!$C$54)^-(Entrées!$C$55-AS3+1)),0) -> 0 | AT60: =IFERROR(AT59*Entrées!$C$54/(1-(1+Entrées!$C$54)^-(Entrées!$C$55-AT3+1)),0) -> 0 | AU60: =IFERROR(AU59*Entrées!$C$54/(1-(1+Entrées!$C$54)^-(Entrées!$C$55-AU3+1)),0) -> 0 | AV60: =IFERROR(AV59*Entrées!$C$54/(1-(1+Entrées!$C$54)^-(Entrées!$C$55-AV3+1)),0) -> 0 | AW60: =IFERROR(AW59*Entrées!$C$54/(1-(1+Entrées!$C$54)^-(Entrées!$C$55-AW3+1)),0) -> 0 | AX60: =IFERROR(AX59*Entrées!$C$54/(1-(1+Entrées!$C$54)^-(Entrées!$C$55-AX3+1)),0) -> 0 | AY60: =IFERROR(AY59*Entrées!$C$54/(1-(1+Entrées!$C$54)^-(Entrées!$C$55-AY3+1)),0) -> 0 | AZ60: =IFERROR(AZ59*Entrées!$C$54/(1-(1+Entrées!$C$54)^-(Entrées!$C$55-AZ3+1)),0) -> 0 | BA60: =IFERROR(BA59*Entrées!$C$54/(1-(1+Entrées!$C$54)^-(Entrées!$C$55-BA3+1)),0) -> 0 | BB60: =IFERROR(BB59*Entrées!$C$54/(1-(1+Entrées!$C$54)^-(Entrées!$C$55-BB3+1)),0) -> 0
B61: Interet | C61: DT | E61: =Entrées!$C$54*Calculs!E59 -> 1000 | F61: =Entrées!$C$54*Calculs!F59 -> 937.2546051 | G61: =Entrées!$C$54*Calculs!G59 -> 868.2346707 | H61: =Entrées!$C$54*Calculs!H59 -> 792.3127429 | I61: =Entrées!$C$54*Calculs!I59 -> 708.7986224 | J61: =Entrées!$C$54*Calculs!J59 -> 616.9330897 | K61: =Entrées!$C$54*Calculs!K59 -> 515.8810038 | L61: =Entrées!$C$54*Calculs!L59 -> 404.7237093 | M61: =Entrées!$C$54*Calculs!M59 -> 282.4506853 | N61: =Entrées!$C$54*Calculs!N59 -> 147.950359 | O61: =Entrées!$C$54*Calculs!O59 -> 0 | P61: =Entrées!$C$54*Calculs!P59 -> 0 | Q61: =Entrées!$C$54*Calculs!Q59 -> 0 | R61: =Entrées!$C$54*Calculs!R59 -> 0 | S61: =Entrées!$C$54*Calculs!S59 -> 0 | T61: =Entrées!$C$54*Calculs!T59 -> 0 | U61: =Entrées!$C$54*Calculs!U59 -> 0 | V61: =Entrées!$C$54*Calculs!V59 -> 0 | W61: =Entrées!$C$54*Calculs!W59 -> 0 | X61: =Entrées!$C$54*Calculs!X59 -> 0 | Y61: =Entrées!$C$54*Calculs!Y59 -> 0 | Z61: =Entrées!$C$54*Calculs!Z59 -> 0 | AA61: =Entrées!$C$54*Calculs!AA59 -> 0 | AB61: =Entrées!$C$54*Calculs!AB59 -> 0 | AC61: =Entrées!$C$54*Calculs!AC59 -> 0 | AD61: =Entrées!$C$54*Calculs!AD59 -> 0 | AE61: =Entrées!$C$54*Calculs!AE59 -> 0 | AF61: =Entrées!$C$54*Calculs!AF59 -> 0 | AG61: =Entrées!$C$54*Calculs!AG59 -> 0 | AH61: =Entrées!$C$54*Calculs!AH59 -> 0 | AI61: =Entrées!$C$54*Calculs!AI59 -> 0 | AJ61: =Entrées!$C$54*Calculs!AJ59 -> 0 | AK61: =Entrées!$C$54*Calculs!AK59 -> 0 | AL61: =Entrées!$C$54*Calculs!AL59 -> 0 | AM61: =Entrées!$C$54*Calculs!AM59 -> 0 | AN61: =Entrées!$C$54*Calculs!AN59 -> 0 | AO61: =Entrées!$C$54*Calculs!AO59 -> 0 | AP61: =Entrées!$C$54*Calculs!AP59 -> 0 | AQ61: =Entrées!$C$54*Calculs!AQ59 -> 0 | AR61: =Entrées!$C$54*Calculs!AR59 -> 0 | AS61: =Entrées!$C$54*Calculs!AS59 -> 0 | AT61: =Entrées!$C$54*Calculs!AT59 -> 0 | AU61: =Entrées!$C$54*Calculs!AU59 -> 0 | AV61: =Entrées!$C$54*Calculs!AV59 -> 0 | AW61: =Entrées!$C$54*Calculs!AW59 -> 0 | AX61: =Entrées!$C$54*Calculs!AX59 -> 0 | AY61: =Entrées!$C$54*Calculs!AY59 -> 0 | AZ61: =Entrées!$C$54*Calculs!AZ59 -> 0 | BA61: =Entrées!$C$54*Calculs!BA59 -> 0 | BB61: =Entrées!$C$54*Calculs!BB59 -> 0
B62: Montant du principal | C62: DT | E62: =E60-E61 -> 627.4539488 | F62: =F60-F61 -> 690.1993437 | G62: =G60-G61 -> 759.2192781 | H62: 835.1412059 | I62: 918.6553265 | J62: 1010.520859 | K62: 1111.572945 | L62: 1222.73024 | M62: 1345.003263 | N62: 1479.50359 | O62: 0 | P62: 0 | Q62: 0 | R62: 0 | S62: 0 | T62: 0 | U62: 0 | V62: 0 | W62: 0 | X62: 0 | Y62: 0 | Z62: 0 | AA62: 0 | AB62: 0 | AC62: 0 | AD62: 0 | AE62: 0 | AF62: 0 | AG62: 0 | AH62: 0 | AI62: 0 | AJ62: 0 | AK62: 0 | AL62: 0 | AM62: 0 | AN62: 0 | AO62: 0 | AP62: 0 | AQ62: 0 | AR62: 0 | AS62: 0 | AT62: 0 | AU62: 0 | AV62: 0 | AW62: 0 | AX62: 0 | AY62: 0 | AZ62: 0 | BA62: 0 | BB62: 0
B64: Capitaux propres initials | C64: DT | D64: =Entrées!C42+Entrées!C44-Entrées!C52 -> 90000
B66: Flux de trésorerie net | C66: DT | E66: =-(E60+E56)-D64 -> -99127.45395 | F66: =-(F60+F56) -> -9722.453949 | G66: =-(G60+G56) -> -10364.70395 | H66: -11057.95945 | I66: -11806.27467 | J66: -12614.02635 | K66: -13485.93939 | L66: -14427.11457 | M66: -15443.05851 | N66: -16539.71594 | O66: -16096.05066 | P66: -17373.89896 | Q66: -18753.28661 | R66: -20242.28858 | S66: -21849.62244 | T66: -23584.69957 | U66: -25457.68038 | V66: -27479.53399 | W66: -29662.10263 | X66: -32018.17118 | Y66: -34561.54224 | Z66: -37307.11719 | AA66: -40270.98376 | AB66: -43470.51045 | AC66: -46924.44864 | AD66: 0 | AE66: 0 | AF66: 0 | AG66: 0 | AH66: 0 | AI66: 0 | AJ66: 0 | AK66: 0 | AL66: 0 | AM66: 0 | AN66: 0 | AO66: 0 | AP66: 0 | AQ66: 0 | AR66: 0 | AS66: 0 | AT66: 0 | AU66: 0 | AV66: 0 | AW66: 0 | AX66: 0 | AY66: 0 | AZ66: 0 | BA66: 0 | BB66: 0
B68: Coût totale actualisé | C68: DT | D68: =-XNPV(Entrées!C59,Calculs!E66:BB66,Calculs!$E$2:$BB$2) -> 251669.7735
B69: Coût totale actualisé par année de la vie du projet | C69: DT | D69: =D68/Entrées!C51 -> 10066.79094

Sheet Résultats et scénarios
A2: Résultats
D3: Système de pompage et d'irrigation à énergie solaire (SPIS) | E3: Système de pompage et d'irrigation au diesel (SPID) | F3: Système de pompage et d'irrigation raccordé au réseau STEG (SPIRR)
B4: Coût totale actualisé par année de la vie du projet | C4: DT/an | D4: =Calculs!D23 -> 1805.548229 | E4: =Calculs!D46 -> 4500.208032 | F4: =Calculs!D69 -> 10066.79094
A7: Scénarios
B9: Système de pompage et d'irrigation à énergie solaire (SPIS) | E9: Système de pompage et d'irrigation au diesel (SPID) | H9: Système de pompage et d'irrigation raccordé au réseau STEG (SPIRR)
B10: Coût du SPIS, TTC | E10: Coût du SPIS, TTC | H10: Coût du SPIS, TTC
B11: changement | C11: Coût totale actualisé par année de la vie du projet | E11: changement | F11: Coût totale actualisé par année de la vie du projet | H11: changement | I11: Coût totale actualisé par année de la vie du projet
B12: =B13-0.1 -> -0.7 | E12: =E13-0.1 -> -0.7 | H12: =H13-0.1 -> -0.7
B13: -0.6 | E13: -0.6 | H13: -0.6
B14: -0.5 | E14: -0.5 | H14: -0.5
B15: -0.4 | E15: -0.4 | H15: -0.4
B16: -0.3 | E16: -0.3 | H16: -0.3
B17: -0.2 | E17: -0.2 | H17: -0.2
B18: =B19-0.1 -> -0.1 | E18: =E19-0.1 -> -0.1 | H18: =H19-0.1 -> -0.1
B19: 0 | E19: 0 | H19: 0
B20: =B19+0.1 -> 0.1 | E20: =E19+0.1 -> 0.1 | H20: =H19+0.1 -> 0.1
B21: =B20+0.1 -> 0.2 | E21: =E20+0.1 -> 0.2 | H21: =H20+0.1 -> 0.2
B22: 0.3 | E22: 0.3 | H22: 0.3
B23: 0.4 | E23: 0.4 | H23: 0.4
B24: 0.5 | E24: 0.5 | H24: 0.5
B25: 0.6 | E25: 0.6 | H25: 0.6
B26: 0.7 | E26: 0.7 | H26: 0.7
B28: Montant de la dette | E28: Consommation de diesel | H28: Coût de raccordement au réseau STEG
B29: changement | C29: Coût totale actualisé par année de la vie du projet | E29: changement | F29: Coût totale actualisé par année de la vie du projet | H29: changement | I29: Coût totale actualisé par année de la vie du projet
B30: =B31-0.1 -> -0.7 | E30: =E31-0.1 -> -0.7 | H30: =H31-0.1 -> -0.7
B31: -0.6 | E31: -0.6 | H31: -0.6
B32: -0.5 | E32: -0.5 | H32: -0.5
B33: -0.4 | E33: -0.4 | H33: -0.4
B34: -0.3 | E34: -0.3 | H34: -0.3
B35: -0.2 | E35: -0.2 | H35: -0.2
B36: =B37-0.1 -> -0.1 | E36: =E37-0.1 -> -0.1 | H36: =H37-0.1 -> -0.1
B37: 0 | E37: 0 | H37: 0
B38: =B37+0.1 -> 0.1 | E38: =E37+0.1 -> 0.1 | H38: =H37+0.1 -> 0.1
B39: =B38+0.1 -> 0.2 | E39: =E38+0.1 -> 0.2 | H39: =H38+0.1 -> 0.2
B40: 0.3 | E40: 0.3 | H40: 0.3
B41: 0.4 | E41: 0.4 | H41: 0.4
B42: 0.5 | E42: 0.5 | H42: 0.5
B43: 0.6 | E43: 0.6 | H43: 0.6
B44: 0.7 | E44: 0.7 | H44: 0.7
B46: Taux d'interêt pour la dette | E46: Augmentation du prix du diesel
B47: changement | C47: Coût totale actualisé par année de la vie du projet | E47: changement | F47: Coût totale actualisé par année de la vie du projet | H47: changement | I47: Coût totale actualisé par année de la vie du projet
B48: =B49-0.1 -> -0.7 | E48: =E49-0.1 -> -0.7 | H48: =H49-0.1 -> -0.7
B49: -0.6 | E49: -0.6 | H49: -0.6
B50: -0.5 | E50: -0.5 | H50: -0.5
B51: -0.4 | E51: -0.4 | H51: -0.4
B52: -0.3 | E52: -0.3 | H52: -0.3
B53: -0.2 | E53: -0.2 | H53: -0.2
B54: =B55-0.1 -> -0.1 | E54: =E55-0.1 -> -0.1 | H54: =H55-0.1 -> -0.1
B55: 0 | E55: 0 | H55: 0
B56: =B55+0.1 -> 0.1 | E56: =E55+0.1 -> 0.1 | H56: =H55+0.1 -> 0.1
B57: =B56+0.1 -> 0.2 | E57: =E56+0.1 -> 0.2 | H57: =H56+0.1 -> 0.2
B58: 0.3 | E58: 0.3 | H58: 0.3
B59: 0.4 | E59: 0.4 | H59: 0.4
B60: 0.5 | E60: 0.5 | H60: 0.5
B61: 0.6 | E61: 0.6 | H61: 0.6
B62: 0.7 | E62: 0.7 | H62: 0.7
